Workbook

Sheet Worksheet
A1: INSTRUCTIONS | B1: 1. Blue Fields: User must enter data into the location e.g. Name of Petitioner user must type in the name of the Petitioner. | AQ1: Attorney for Petitioner
B2: 2. Yellow Fields: User must select from the drop down box only e.g. Main. Requested (Y or N) and answer is No, user | AQ2: Attorney for Respondent
B3: must select N from the drop down box and not type in the letter N. Such typing will be rejected. | AQ3: Pro Se
B4: To activate the drop down choices place the cursor (mouse) in the box and hit the left button on the mouse, drop
B5: down arrow will appear on the right side of the location.
B6: 3. Black or White Fields: User should disregard as the information sought does not apply to user's case. | Y6: Allen | AB6: Johnson
A7: TIPS | B7: IMPORTANT TO FOLLOW THE DIRECTIONS ENTIRELY FOR THE CALCULATOR TO WORK PROPERLY. | AB7: Allen
B8: PLACE AND HOLD CURSOR IN FIELD AND HINT SHOULD APPEAR EXPLAINING WHAT IS BEING SOUGHT.
B9: USER SHOULD BE ABLE TO UTILIZE THE TAB KEY TO MOVE TO THE NEXT FIELD. | AB9: Anderson
A10: CAPTION | B10: Name of Petitioner | O10: P | P10: Head of Household | S10: Yes | U10: Atty for Petitioner | Y10: Anderson | AB10: Atchison
B11: Name of Respondent | M11: Alternate | O11: R | P11: Single | S11: No | U11: Atty for Respondent | Y11: Atchison | AB11: Barber
B12: Case No | M12: Mother | P12: Married-Joint | U12: Pro Se | Y12: Barber | AB12: Barton
B13: Court No | M13: Father | N13: =H20/12 -> 0 | P13: Married-Sep. | U13: Petitioner | Y13: Butler | AB13: Bourbon
B14: County of Action | F14: Johnson | U14: Respondent | Y14: Cheyenne | AB14: Brown
A15: INCOME/MAINTENANCE | B15: Father's Income (Wages) ; Monthly or Annually | F15: Monthly | G15: Amount Paid | Y15: Clark | AB15: Butler
B16: Father's Income (Annual) | F16: =IF(F15="Annually",H15,M17) -> 0 | M16: =F16/12 -> 0 | Y16: Barton | AB16: Chase
B17: Father's Income (Monthly ) | F17: =IF(F15="Monthly",H15+J131,M16) -> 0 | L17: 12 | M17: =F17*L17 -> 0 | Y17: Bourbon | AB17: Chautauqua
F18: ************ | Y18: Brown | AB18: Cherokee
B19: Father's Self Employment Income, if any | G19: Father's Bus. Exp. | O19: Head of Household | Y19: Cloud | AB19: Cheyenne
B20: Mother's Income (Wages); Monthly or Annually | F20: Monthly | G20: Amount Paid | Y20: Coffey | AB20: Clark
B21: Mother's Income (Annual) | F21: =IF(F20="Annually",H20,M22) -> 0 | M21: =F21/12 -> 0 | O21: Single | Y21: Chase | AB21: Clay
B22: Mother's Income (Monthly) | F22: =IF(F20="Monthly",H20+H131,N13) -> 0 | L22: 12 | M22: =F22*L22 -> 0 | O22: Married-Joint | Y22: Chautauqua | AB22: Cloud
F23: ************ | Y23: Cherokee | AB23: Coffey
B24: Mother's Self Employment Income, if any | G24: Mother's Bus. Exp. | Y24: Cowley | AB24: Comanche
B25: Maintenance/Alimony Requested (Y or N) | Y25: Dickinson | AB25: Cowley
B26: Monthly Income Difference | F26: =IF(M16>M21,M16-M21,M21-M16) -> 0 | Y26: Clay | AB26: Crawford
B27: Main/Alimony Upon Percentage.See Comment | Y27: Finney | AB27: Decatur
B28: Main. Amount | F28: =F26*F27/100 -> 0 | O28: Do Not Complete | Y28: Graham | AB28: Dickinson
F29: *********** | Y29: Comanche | AB29: Doniphan
A30: REPRESENTATION | B30: Party Worksheet Prepared for (P or R) | Y30: Greeley | AB30: Douglas
D31: Number of Children | F31: 0 | Y31: Crawford | AB31: Edwards
B32: Party Status As Mother or Father (M or F) | Y32: Decatur | AB32: Elk
A33: TAX FILING | B33: Tax Filing of Cust. Parent See Comment | Y33: Harvey | AB33: Ellis
B34: Parent Child Reside File HOHousehold | F34: =IF(F33="Head of Household","Y","N") -> N | Y34: Doniphan | AB34: Ellsworth
B35: Parent Child Reside File Single | F35: =IF(F33="Single","Y","N") -> N | N35: Y | Y35: Douglas | AB35: Finney
B36: Parent Child Reside With File Joint | F36: =IF(F33="Married-Joint","Y","N") -> N | N36: N | Y36: Edwards | AB36: Ford
D37: Noncust. File Single | Y37: Elk | AB37: Franklin
D38: Noncust. File Married | Y38: Ellis | AB38: Geary
B39: Noncustodial File HOH | Y39: Ellsworth | AB39: Gove
B40: Tax Filing of Noncust. Parent | Y40: Jefferson | AB40: Graham
B41: Noncustodial Parent File HOHousehold | F41: =IF(F40="Head of Household","Y","N") -> N | Y41: Ford | AB41: Grant
B42: Noncustodial Parent File Joint | F42: =IF(F40="Married-Joint","Y","N") -> N | Y42: Franklin | AB42: Gray
B43: Noncustodial Parent File Single | F43: =IF(F40="Single","Y","N") -> N | Y43: Geary | AB43: Greeley
A44: CHILDREN | F44: ************ | Y44: Gove | AB44: Greenwood
A45: CHILDREN | B45: Parent Children Reside With (M or F) | G45: How Exemption Claimed (Alternate, Mother, Father) | M45: F | N45: M | Y45: Johnson | AB45: Hamilton
B46: Total Day Care Paid by Mother | Y46: Grant | AB46: Harper
B47: Total Day Care Paid by Father | Y47: Gray | AB47: Harvey
B48: Birthday Child #1 (format 1/1/2012 for ex.) | H48: =IFERROR(IF(YEARFRAC(F48,TODAY(),1)>18,"Highschool Grad?",""),"") -> Highschool Grad? | M48: =IF(G48="Father",1,0) -> 0 | N48: =IF(G48="Mother",1,0) -> 0 | Y48: Kingman | AB48: Haskell
B49: Work Related Day Care Amt. #1 | J49: =IF(F49>0,1) -> FALSE | L49: =IF(G49="M",1,0) -> 0 | M49: =IF(G49="F",1,0) -> 0 | N49: 0 | Y49: Greenwood | AB49: Hodgeman
B50: Mother Pays Work Related Day Care #1 | J50: =IF(F53>0,1) -> FALSE | L50: 0 | M50: 0 | N50: 0 | Y50: Hamilton | AB50: Jackson
B51: Father Pays Work Related Day Care #1 | J51: =IF(F57>0,1) -> FALSE | L51: 0 | M51: 0 | N51: 0 | Y51: Harper | AB51: Jefferson
B52: Birthday Child #2, if any | F52: NA | H52: =IFERROR(IF(YEARFRAC(F52,TODAY(),1)>18,"Highschool Grad?",""),"") ->  | M52: 0 | N52: =IF(G52="M",1,0) -> 0 | Y52: Kiowa | AB52: Jewell
B53: Work Related Day Care Amt #2 | L53: 0 | M53: 0 | N53: 0 | Y53: Haskell | AB53: Johnson
B54: Mother Pays Work Related Day Care #2 | L54: 0 | M54: 0 | N54: 0 | Y54: Hodgeman | AB54: Kearny
B55: Father Pays Work Related Day Care #2 | L55: 0 | M55: 0 | N55: 0 | Y55: Jackson | AB55: Kingman
B56: Birthday Child #3, if any | F56: NA | H56: =IFERROR(IF(YEARFRAC(F56,TODAY(),1)>18,"Highschool Grad?",""),"") ->  | M56: 0 | N56: =IF(G56="M",1,0) -> 0 | Y56: KS Counties | AB56: Kiowa
B57: Work Related Day Care Amt #3 | L57: 0 | M57: 0 | N57: 0 | Y57: Jewell | AB57: Labette
B58: Mother Pays Work Related Day Care #3 | L58: 0 | M58: 0 | N58: 0 | Y58: Johnson | AB58: Lane
B59: Father Pays Work Related Day Care #3 | L59: 0 | M59: 0 | N59: 0 | Y59: Kearny | AB59: Leavenworth
B60: Birthday Child #4, if any | F60: NA | H60: =IFERROR(IF(YEARFRAC(F60,TODAY(),1)>18,"Highschool Grad?",""),"") ->  | M60: 0 | N60: =IF(G60="M",1,0) -> 0 | Y60: Lane | AB60: Lincoln
B61: Birthday Child #5, if any | F61: NA | H61: =IFERROR(IF(YEARFRAC(F61,TODAY(),1)>18,"Highschool Grad?",""),"") ->  | M61: 0 | N61: =IF(G61="M",1,0) -> 0 | Y61: Linn | AB61: Linn
B62: Children reside with (M or F) | L62: 0 | M62: 0 | N62: 0 | Y62: Labette | AB62: Logan
B63: Birthday Child #6, if any | F63: NA | H63: =IFERROR(IF(YEARFRAC(F63,TODAY(),1)>18,"Highschool Grad?",""),"") ->  | M63: 0 | N63: =IF(G63="M",1,0) -> 0 | Y63: Logan | AB63: Lyon
F64: ************ | L64: =SUM(L48:L63) -> 0 | M64: =SUM(M48:M63) -> 0 | N64: =SUM(N48:N63) -> 0 | Y64: Leavenworth | AB64: McPherson
B65: Total Number Children in Day Care | F65: ='Age of Children'!G9+'Age of Children'!H9 -> 0 | Y65: Lincoln | AB65: Marion
B66: Tax Consideration (Value) For Exemptions | F66: =IF(D68<0,-D68,D68) -> 
B67: Mother | D67: Father
B68: ='Tax Cons.'!N10 ->  | D68: ='Tax Cons.'!N11 ->  | E68: Apply Tax Cons.
A71: DAY CARE/HEALTH CARE | B71: Total Day Care Paid by Mother | M71: =IF(M64>L64,'Tax Cons.'!O8,0) -> 0 | N71: =IF(N64>M64,'Tax Cons.'!Q8,0) -> 0 | U71: Y | V71: M | Y71: Lyon | AB71: Marshall
B72: Total Day Care Paid by Father | M72: =M64-L64 -> 0 | N72: =N64-M64 -> 0 | U72: N | V72: F | Y72: McPherson | AB72: Meade
B73: Health and Dental Mother | M73: =IF(M72>0,M72,0) -> 0 | N73: =IF(N72>0,N72,0) -> 0 | P73: Number of Add Children | Y73: Neosho | AB73: Miami
B74: Health and Dental Father | M74: =M73*M71 -> 0 | N74: =N73*N71 -> 0 | Y74: Norton | AB74: Mitchell
A75: ENFORCEMENT FEE | B75: Enforcement Fee | F75: N | G75: Amount of Fee | Y75: Marion | AB75: Montgomery
B76: Name of Respondent | F76: ___ | Y76: Marshall | AB76: Morris
B77: Case No | Y77: Meade | AB77: Morton
B78: Court No | Y78: Miami | AB78: Nemaha
B79: Health and Dental Dad | Y79: Mitchell | AB79: Neosho
B80: Health and Dental Mom | Y80: Montgomery | AB80: Ness
D81: Work Related Dad | Y81: Morris | AB81: Norton
D82: Work Related Mom | Y82: Morton | AB82: Osage
F83: ************ | L83: =L74*0.5 -> 0 | M83: =M74*0.5 -> 0 | N83: =N74*0.5 -> 0 | Y83: Nemaha | AB83: Osborne
A84: ADJUST: a. Multi Family | B84: Multiple Family (Assume No) | F84: N | G84: =P73 -> Number of Add Children | M84: =M74/2 -> 0 | N84: =N74/2 -> 0 | P84: Party Lives Out of State (M or F) | Y84: Ottawa | AB84: Ottawa
B85: Number of Add Children for Multi Family | Y85: Ness | AB85: Pawnee
A86: b. Interstate | B86: Interstate Pay (Assume No) | F86: N | G86: =P84 -> Party Lives Out of State (M or F) | P86: Interstate Pay Identify the State | Y86: Pawnee | AB86: Phillips
B87: Party Lives Out of State (M or F) | Y87: Osage | AB87: Pottawatomie
F88: ************ | Y88: Osborne | AB88: Pratt
A89: Pay | B89: =P86 -> Interstate Pay Identify the State | F89: Alabama | Y89: Pottawatomie | AB89: Rawlins
A90: c. Equal Parent | B90: Equal Parenting Time Worksheet (Y or N) | F90: N | G90: =P92 -> Written Agreement Clothing (Y or N) | I90: Y | P90: Do Not Complete If Prev. Response No | Y90: Pratt | AB90: Reno
B91: Written Agreement for Clothing (Y or N) | Y91: Phillips | AB91: Republic
A92: Time | B92: =IF(F90="N",P90,P93) -> Do Not Complete If Prev. Response No | F92: M | P92: Written Agreement Clothing (Y or N) | Y92: Rawlins | AB92: Rice | AR92: Mother
A93: d. Child Support | B93: Father Pay Child Support Another Case | F93: N | G93: =P100 -> Amt Father Pays | P93: Who Is to Pay Direct Expenses (M or F) | Y93: Reno | AB93: Riley | AR93: Father
A94: Other Case | B94: Mother Pay Child Support Another Case | F94: N | G94: =P101 -> Amt Mother Pays | Y94: Republic | AB94: Rooks | AW94: A
A95: e. Long Distance Travel | B95: Long Distance Travel Costs Adj. (Y or N) | F95: N | AQ95: Attorney for Petitioner | AW95: M
A96: f. Special Needs | B96: Special Needs Adj. (Y or N) | F96: N | AQ96: Attorney for Respondent | AW96: F
A97: g. Support Past Majority | B97: Support Past Majority Adj. (Y or N) | F97: N | AQ97: Pro Se
A98: h. Overall Fin. Condition | B98: Overall Financial Condition Adj. (Y or N) | F98: N
A99: i. Parent Time (Not EPT) | B99: Parenting Time Adj. (Equal Parenting Time) | F99: N
A100: NAME OF PREPARER | B100: Name | F100: Bar # | P100: Amt Father Pays | Y100: Rice | AB100: Rush
B101: Add. | F101: City,State | P101: Amt Mother Pays | Y101: Riley | AB101: Russell
B102: Phone | F102: Fax | Y102: Rooks | AB102: Saline
B103: Email | Y103: Rooks | AB103: Scott
B104: Indicate Status as Attorney or Pro Se
A105: PRINT SELECTION | B105: 1. Print Child Support Worksheet (WS) Only, SELECT BUTTON TO RIGHT
B106: 2. Print WS and Tax Considerations (1 and 2), SELECT BUTTON TO RIGHT
B107: 3. Print WS ,Tax Cons. and Equal Parent Time Worksheet (1-3), SELECT BUTTON TO RIGHT
C109: ="IN THE DISTRICT COURT OF "&UPPER(F14)&" COUNTY, KANSAS" -> IN THE DISTRICT COURT OF JOHNSON COUNTY, KANSAS | Y109: Rush | AB109: Sedgwick
C110: CIVIL COURT DEPARTMENT | P110: =P92 -> Written Agreement Clothing (Y or N) | Y110: Rush | AB110: Seward
Y111: Russell | AB111: Shawnee
D112: In the matter of the Marriage of: | Y112: Russell | AB112: Sheridan
Y113: Saline | AB113: Sherman
D114: =E10 -> 0 | Y114: Saline | AB114: Smith
D115: and | I115: Case No. | J115: =F12 -> 0 | N115: =IF(F32="F",N118) -> FALSE | Y115: Scott | AB115: Stafford
D116: =E11 -> 0 | I116: Court | J116: =F13 -> 0 | Y116: Scott | AB116: Stanton
Y117: Sedgwick | AB117: Stevens
C118: =IF(F30="p",N118,N119) -> CHILD SUPPORT WORKSHEET OF RESPONDENT | N118: CHILD SUPPORT WORKSHEET OF PETITIONER | Y118: Sedgwick | AB118: Sumner
C119: =IF(F30="p","PETITIONER","RESPONDENT") -> RESPONDENT | N119: CHILD SUPPORT WORKSHEET OF RESPONDENT | Y119: Seward | AB119: Thomas
Y120: Seward | AB120: Trego
H121: MOTHER | J121: FATHER | L121: TOTAL | Y121: Shawnee | AB121: Wabaunsee
Y122: Shawnee | AB122: Wallace
C123: A. | D123: INCOME COMPUTATION – WAGE EARNER | Y123: Sheridan | AB123: Washington
D124: 1 | E124: Domestic Gross Income | H124: =IF(F20="Monthly",H20,N13) -> 0 | J124: =IF(F15="Monthly",H15,M16) -> 0 | L124: =H124+J124 -> 0 | Y124: Sheridan | AB124: Wichita
D125: 2 | E125: Interstate Pay Adjustment | H125: =IF(I86="M",'Interstate Pay'!N56,0) -> 0 | J125: =IF(I86="F",'Interstate Pay'!N56,0) -> 0 | L125: =L124+H125+J125 -> 0 | Y125: Sherman | AB125: Wilson
Y126: Sherman | AB126: Woodson
C127: B. | D127: INCOME COMPUTATION – SELF-EMPLOYED | Y127: Smith | AB127: Wyandotte
Y128: Smith
D129: 1 | E129: Self-Employment Gross Income* | H129: =F24 -> 0 | J129: =F19 -> 0 | Y129: Stafford
D130: 2 | E130: Reasonable Business Expenses | H130: =-H24 -> 0 | J130: =-H19 -> 0 | L130: =H130+J130 -> 0 | Y130: Stafford
D131: 3 | E131: Self Employment After Expenses | H131: =H129+H130 -> 0 | J131: =J129+J130 -> 0 | L131: =H131+J131 -> 0 | P131: =AND(F7="Y",F16>F21)*F28 -> 0 | Y131: Stanton
Y132: Stanton
C133: C. | D133: ADJUSTMENTS TO DOMESTIC GROSS INCOME | Y133: Stevens
P134: =-Q134 -> -5 | Q134: 5 | Y134: Stevens
D135: 1 | E135: Domestic Gross Income | H135: =H124+H125+H131 -> 0 | J135: =J124+J125+J131 -> 0 | L135: =H135+J135 -> 0 | Y135: Sumner
D136: 2 | E136: Other Court-Ordered Child Support Paid (-) | H136: =-H94 -> 0 | J136: =-H93 -> 0 | Y136: Sumner
D137: 3 | E137: Court-Ordered Maint Paid in this Case (-) | H137: =-O137 -> 0 | J137: =-P137 -> 0 | O137: =AND(F25="Y",M16<M21)*F28 -> 0 | P137: =AND(F25="Y",M16>M21)*F28 -> 0 | Y137: Thomas
D138: 4 | E138: Court-Ordered Maint Recd in this Case (+) | H138: =AND(F25="Y",M16>M21)*F28 -> 0 | J138: =AND(F25="Y",M16<M21)*F28 -> 0 | Y138: Thomas
D139: 5 | E139: Court Ordered Main. Paid in Other Case (-) | Y139: Trego
D140: 6 | E140: Court-Ordered Main. Recd in Other Case (+) | Y140: Trego
D141: 7 | E141: Child Support Income | H141: =H135+H136+H137+H138+H139+H140 -> 0 | J141: =J135+J136+J137+J138+J139+J140 -> 0 | L141: =H141+J141 -> 0 | N141: Wife Rounding | Y141: Wabaunsee
E142: (Insert on Line D.1. below) | N142: =H142/L142*100 ->  | Y142: Wabaunsee
N143: =ROUND(N142,1) ->  | Y143: Wallace
C144: D. | D144: COMPUTATION OF CHILD SUPPORT | Y144: Wallace
Y145: Washington
D146: 1 | E146: Child Support Income | H146: =H141 -> 0 | J146: =J141 -> 0 | N146: Wife Rounding | P146: Husband Rounding | Y146: Washington
D147: 2 | E147: Proportionate Shares of Combined Income | H147: =N150 ->  | I147: (Percent) | J147: =P150 ->  | N147: =H146/L141*100 ->  | P147: =J146/L141*100 ->  | Y147: Wichita
Y148: Wichita
Y149: Wilson
E150: Age of Children | G150: 0-5 | H150: 6-11 | I150: 12-18 | J150: Total | N150: =ROUND(N147,1) ->  | P150: =ROUND(P147,1) ->  | Y150: Wilson | AZ150: 15560
E151: Number Per Age Category | G151: ='Age of Children'!G9 -> 0 | H151: ='Age of Children'!H9 -> 0 | I151: ='Age of Children'!I9 -> 1 | J151: =I151+H151+G151 -> 1 | Y151: Woodson
E152: Amount Per Child | G152: =Schedules!AJ19 -> 0 | H152: =Schedules!AK19 -> 0 | I152: =Schedules!AL19 ->  | Y152: Woodson
E153: Total Amount | G153: =G152*G151 -> 0 | H153: =H152*H151 -> 0 | I153: =I152*I151 ->  | J153: =I153+H153+G153 ->  | Y153: Wyandotte | AZ153: Ext. formula applied
O154: =IF(Schedules!AD27<50,Extended!I25,Schedules!AD27) ->  | Y154: Wyandotte
D156: 3 | E156: Gross Child Support Obligation** | I156: =IF(L141<15500,"",AZ153) ->  | L156: =J153 -> 
E157: * Interstate Pay Differential Adjustment? | H157: =IF(F86="Y",N157,N159) -> No | N157: Yes
E158: **Multiple Family Application? | H158: =IF(F84="Y",N157,N159) -> No
E159: Number of Additional Children | H159: =I84 -> 0 | N159: No
N160: N/A
D162: Case No. | E162: =F12 -> 0
C164: D. | D164: COMPUTATION OF CHILD SUPPORT | H164: MOTHER | J164: FATHER | L164: TOTAL | O164: -5 | P164: -5 | Q164: =O164+P164 -> -10
D166: 3 | E166: Gross Child Support Carried Over Page 1 | L166: =L156 -> 
D167: 4 | E167: Health and Dental Insurance Premium | H167: =F73 -> 0 | J167: =F74 -> 0 | L167: =H167+J167 -> 0
D168: 5 | E168: Work-Related Child Care Costs | H168: =F71 -> 0 | J168: =F72 -> 0 | L168: =H168+J168 -> 0
E169: Formula: Amt. – ((Amt. X %) + (.25 x (Amt. x %)))
E170: for each child care credit | M170: 700
E171: Example: 200 – ((200 x .30%) + (.25 x (200 x .30%))) | M171: =700*0.3 -> 210
E172: (Tax Credit) | H172: =-N172 -> 0 | J172: =-O172 -> 0 | L172: =H172+J172 -> 0 | N172: =IF(H168>0,'Day Care Credit'!N54)+OR(H168=0)*0 -> 0 | O172: =IF(J168>0,'Day Care Credit'!N54)+OR(J168=0)*0 -> 0
D177: 6 | E177: Parents' Total Child Support | L177: =L156+L167+L168+L172 -> 
E178: (Line D3 plus D4 and D5)
D179: 7 | E179: Parent Child Support Oblig. | H179: =L177*H147/100 ->  | J179: =L177*J147/100 -> 
D180: 8 | E180: Adjustment for Health/Work Related | H180: =-(H167+H168+H172) -> 0 | J180: =-(J167+J168+J172) -> 0
D181: 9 | E181: Basic Parental Child Support Obligation | H181: =H179+H180 ->  | J181: =J179+J180 ->  | L181: =J181+H181 -> 
O182: DAD | P182: moM
C183: E. | D183: CHILD SUPPORT ADJUSTMENTS | O183: ='Tax Cons.'!H52 -> 0 | P183: ='Tax Cons.'!H51 -> 0 | Q183: 0
H184: MOTHER | J184: FATHER | O184: JAK Ex. | P184: JAK HOH | Q184: 5
D185: 1 | E185: Long Distance Parenting Costs | H185: =IF(G95="Mother",-H95,0) -> 0 | J185: =IF(G95="Father",-H95,0) -> 0 | O185: ='Tax Cons.'!J13 ->  | P185: ='Tax Cons.'!J35 ->  | Q185: =SUM(Q183:Q184) -> 5
D186: 2 | E186: Parenting Time Adjustment | H186: =IF(G99="Mother",-H99,0) -> 0 | J186: =IF(G99="Father",-H99,0) -> 0
D187: 3 | E187: Income Tax Cons: Exemption | H187: =BD189 -> 0 | J187: =BF189 -> 0 | N187: ='Tax Cons.'!J13 ->  | O187: ='Tax Cons.'!J31 ->  | P187: ='Tax Rates'!E72 ->  | Q187: =-Q185 -> -5 | BA187: Income Tax Cons: Exemption | BD187: =IF(F67="Y",B68,0) -> 0 | BF187: =IF(F67="Y",D68,0) -> 0
D188: 4 | E188: Income Tax Cons: Head of Household | H188: ='Tax Cons.'!J51 -> 0 | J188: ='Tax Cons.'!J52 -> 0 | O188: =IF(P189>0,"=-O154",0) -> 0 | BD188: =IF(F68="y",2*B68,0) -> 0 | BF188: =IF(F68="y",2*D68,0) -> 0
D189: 5 | E189: Special Needs | H189: =IF(G96="Mother",-H96,0) -> 0 | J189: =IF(G96="Father",-H96,0) -> 0 | N189: ='Tax Cons.'!Q6 -> 0 | O189: =-P189 -> 0 | P189: =AND(F34="y",F41="y",'Tax Rate'!T67)*'Tax Rate'!V67 -> 0 | Y189: Difference | BD189: =SUM(BD187:BD188) -> 0 | BF189: =SUM(BF187:BF188) -> 0
D190: 6 | E190: Support Past Minority | H190: =IF(G97="Mother",-H97,0) -> 0 | J190: =IF(G97="Father",-H97,0) -> 0 | N190: =SUM(N187:N189) ->  | O190: =SUM(O187:O189) ->  | Y190: Mother | Z190: Father
D191: 7 | E191: Overall Fin. Condition | H191: =IF(G98="Mother",-H98,0) -> 0 | J191: =IF(G98="Father",-H98,0) -> 0 | Y191: =H198-J198 ->  | Z191: =J198-H198 -> 
D192: 8 | E192: Total Adjustments | H192: =H185+H186+H187+H188+H189+H190+H191 -> 0 | J192: =SUM(J185:J191) -> 0 | O192: =IF(F45="M",L71,0) -> 0
O193: =IF(F46="f",L71,0) -> 0 | T193: enforcement | V193: =Y205*0.02*0.5 ->  | W193: =Z205*0.02*0.5 ->  | Y193: higher earner/pay earner
C194: F. | D194: ADJUSTED CHILD SUPPORT SUMMARY | O194: =SUM(O192:O193) -> 0 | V194: =IF(V193>5,5,V193) ->  | W194: =IF(W193>5,5,W193) -> 
H195: MOTHER | J195: FATHER | V195: =IF(F45="M",0,V194) ->  | W195: =IF(F45="f",0,W194) ->  | Y195: Father/Mother P | Z195: Mother/moth
D196: 1 | E196: Basic Parental Child Support | H196: =H181 ->  | J196: =J181 ->  | V196: =IF(V195<0,0,V195) ->  | W196: =IF(W195<0,0,W195) ->  | Y196: Father/father | Z196: Mother/fat
D197: 2 | E197: =IF(F90="N",N209,T209) -> Section E Adjustments | H197: =IF(F90="N",R209,W209) -> 0 | J197: =IF(F90="N",S209,X209) -> 0 | Y197: =IF('EPT Draft'!K31>0,'EPT Draft'!K31,0) ->  | Z197: =IF('EPT Draft'!K32<0,-'EPT Draft'!K32,0) -> 
A198: =IF(F90="n","",'EPT Draft'!K23) ->  | D198: 3 | E198: =IF(F90="N",N210,N210) -> Adjustment Subtotal | H198: =R210 ->  | J198: =S210 ->  | T198: Mother | U198: Father | Y198: =IF('EPT Draft'!K32<0,-'EPT Draft'!K32,0) ->  | Z198: =IF('EPT Draft'!K31>0,'EPT Draft'!K31,0) -> 
D199: 4 | E199: Parent Time Adjustment | H199: =IF(F90="N",R211,Y205) -> 0 | I199: =IF(F90="n","",'EPT Draft'!K23) ->  | J199: =IF(F90="N",S211,Z205) -> 0 | N199: =J196*0.02 ->  | O199: =IF(F45="M",N199,0) -> 0 | P199: =IF(F45="F",N199,0) -> 0 | Y199: =SUM(Y197:Y198) ->  | Z199: =SUM(Z197:Z198) -> 
D200: 5 | E200: Enforcement Fee | H200: =IF(F90="N",R221,V196) ->  | J200: =IF(F90="N",S221,W196) ->  | T200: =H196-J196 ->  | U200: =J196-H196 ->  | X200: ='EPT Draft'!K31 ->  | Y200: =-'EPT Draft'!K32 -> 
D201: 6 | E201: Net Parental Child Support Obligation | H201: =IF(F90="N",R214,W213) ->  | J201: =IF(F90="N",S213,X213) ->  | T201: =IF(T200>0,T200,0) ->  | U201: =IF(U200>0,U200,0) -> 
N202: Father | O202: Mother | T202: =IF(T201>0,W201,0) ->  | U202: =IF(U201>0,W201,0) -> 
N203: =IF(J198>H198,-'EPT Draft'!K32,0) ->  | O203: =IF(H198>J198,-'EPT Draft'!K32,0) -> 
N204: =IF(J198<H198,'EPT Draft'!K31,0) ->  | O204: =IF(H198<J198,'EPT Draft'!K31,0) ->  | Y204: Mother | Z204: Father
H205: ___________________________________ | N205: =SUM(N203:N204) ->  | O205: =SUM(O203:O204) ->  | Y205: ='EPT Draft'!Q26 ->  | Z205: ='EPT Draft'!P26 -> 
H206: Judge/Hearing Officer | N206: =IF(F90="Y",N205,0) -> 0 | O206: =IF(F90="Y",O205,0) -> 0 | Y206: =IF(H198>J198,Y205,0) ->  | Z206: =IF(J198>H198,Z205,0) -> 
C208: s/ | D208: =C100 -> 0 | F208: =IF(G100="","",G100) ->  | H208: ___________________________________ | R208: Mother | S208: Father | W208: Mother | X208: Father
D209: =C101 -> 0 | H209: Date Signed | N209: Section E Adjustments | R209: =H192 -> 0 | S209: =J192 -> 0 | T209: Section E Adjustments | W209: =R209 -> 0 | X209: =S209 -> 0
D210: =G101 -> 0 | N210: Adjustment Subtotal | R210: =H196+H197 ->  | S210: =J196+J197 ->  | T210: Difference Adj. Subtotal | W210: =T201 ->  | X210: =U201 -> 
D211: =C102 -> 0 | F211: Phone | H211: ___________________________________ | N211: Parenting Time Adjustment | R211: 0 | S211: 0 | T211: Parenting Adjustment
D212: =G102 -> 0 | F212: Fax | H212: Date Approved | N212: Enforcement Fee
... 114 more rows

Sheet Day Care Credit (hidden)
E4: Day Care Computation
D9: Work Related Day Care
H10: 1 | I10: 2 | J10: =Worksheet!J151 -> 1
E11: 15000 | F11: 0.35 | H11: 88 | I11: 175
E12: 17000 | F12: 0.34 | H12: 85 | I12: 170
E13: 19000 | F13: 0.33 | H13: 83 | I13: 165
E14: 21000 | F14: 0.32 | H14: 80 | I14: 160
E15: 23000 | F15: 0.31 | H15: 78 | I15: 155
E16: 25000 | F16: 0.3 | H16: 75 | I16: 150
E17: 27000 | F17: 0.29 | H17: 73 | I17: 145
E18: 29000 | F18: 0.28 | H18: 70 | I18: 140
E19: 31000 | F19: 0.27 | H19: 68 | I19: 135
E20: 33000 | F20: 0.26 | H20: 65 | I20: 130
E21: 35000 | F21: 0.25 | H21: 63 | I21: 125
E22: 37000 | F22: 0.24 | H22: 60 | I22: 120
E23: 39000 | F23: 0.23 | H23: 58 | I23: 115
E24: 41000 | F24: 0.22 | H24: 55 | I24: 110
E25: 43000 | F25: 0.21 | H25: 53 | I25: 105
E26: 45000 | F26: 0.2 | H26: 50 | I26: 100
E27: 47000 | F27: 0.19 | H27: 47.5
E28: 49000 | F28: 0.18 | H28: 45
E29: 51000 | F29: 0.17 | H29: 42.5
E30: 53000 | F30: 0.16 | H30: 40
E31: 55000 | F31: 0.15 | H31: 37.5
E32: 57000 | F32: 0.14 | H32: 35
F33: monthly | G33: annually
E34: Mother | F34: =Worksheet!H135+Worksheet!H137+Worksheet!H138 -> 0 | G34: 12 | H34: =F34*G34 -> 0 | I34: =IF(Worksheet!H168>0,H34,0) -> 0 | K34: `
E35: Father | F35: =Worksheet!J135+Worksheet!J137+Worksheet!J138 -> 0 | G35: 12 | H35: =F35*G35 -> 0 | I35: =IF(Worksheet!J168>0,H35,0) -> 0 | K35: Number of Kids
E36: Day Care Payor | G36: =I34+I35 -> 0 | K36: =Worksheet!F65 -> 0
K37: =AND(K36=1,G36<E11)*H11 -> 0 | L37: <15000 | M37: =AND(K36>1,G36<E11)*175 -> 0
K38: =AND(K36=1,G36>=E11,G36<E12)*H12 -> 0 | L38: <17000 | M38: =AND(K36>1,G36>=E11,G36<E12)*I12 -> 0
K39: =AND(K36=1,G36>=E12,G36<E13)*H13 -> 0 | L39: <19000 | M39: =AND(K36>1,G36>=E12,G36<E13)*I13 -> 0
E40: Main Rec. by Payor | G40: Dcare | H40: Main. Rec | I40: Main Pd | K40: =AND(K36=1,G36>=E13,G36<E14)*H14 -> 0 | L40: <21000 | M40: =AND(K36>1,G36>=E13,G36<E14)*I14 -> 0
E41: Mother | G41: =IF(Worksheet!F71>0,Worksheet!F71,0) -> 0 | H41: =IF(Worksheet!H138>0,Worksheet!H138,0) -> 0 | K41: =AND(K36=1,G36>=E14,G36<E15)*H15 -> 0 | L41: <23000 | M41: =AND(K36>1,G36>=E14,G36<E15)*I15 -> 0
K42: =AND(K36=1,G36>=E15,G36<E16)*H16 -> 0 | L42: <25000 | M42: =AND(K36>1,G36>=E15,G36<E16)*I16 -> 0
E43: Father | G43: =IF(Worksheet!F72>0,Worksheet!F72,0) -> 0 | H43: =IF(Worksheet!J138>0,Worksheet!J138,0) -> 0 | K43: =AND(K36=1,G36>=E16,G36<E17)*H17 -> 0 | L43: <27000 | M43: =AND(K36>1,G36>=E16,G36<E17)*I17 -> 0
K44: =AND(K36=1,G36>=E17,G36<E18)*H18 -> 0 | L44: <29000 | M44: =AND(K36>1,G36>=E17,G36<E18)*I18 -> 0
K45: =AND(K36=1,G36>=E18,G36<E19)*H19 -> 0 | L45: <31000 | M45: =AND(K36>1,G36>=E18,G36<E19)*I19 -> 0
K46: =AND(K36=1,G36>=E19,G36<E20)*H20 -> 0 | L46: <33000 | M46: =AND(K36>1,G36>=E19,G36<E20)*I20 -> 0
K47: =AND(K36=1,G36>=E20,G36<E21)*H21 -> 0 | L47: <35000 | M47: =AND(K36>1,G36>=E20,G36<E21)*I21 -> 0
K48: =AND(K36=1,G36>=E21,G36<E22)*H22 -> 0 | L48: <37000 | M48: =AND(K36>1,G36>=E21,G36<E22)*I22 -> 0
K49: =AND(K36=1,G36>=E22,G36<E23)*H23 -> 0 | L49: <39000 | M49: =AND(K36>1,G36>=E22,G36<E23)*I23 -> 0
K50: =AND(K36=1,G36>=E23,G36<E24)*H24 -> 0 | L50: <41000 | M50: =AND(K36>1,G36>=E23,G36<E24)*I24 -> 0
K51: =AND(K36=1,G36>=E24,G36<E25)*H25 -> 0 | L51: <43000 | M51: =AND(K36>1,G36>=E24,G36<E25)*I25 -> 0
K52: =AND(K36=1,G36>=E25,G36<E26)*H26 -> 0 | L52: <45000 | M52: =AND(K36>1,G36>=E25,G36<E26)*I26 -> 0
K53: =AND(K36=1,G36>=E26)*H26 -> 0 | L53: <47000 | M53: =AND(K36>1,G36>=E26)*I26 -> 0
K54: =SUM(K37:K53) -> 0 | M54: =SUM(M37:M53) -> 0 | N54: =K54+M54 -> 0

Sheet Tax Rate (hidden)
J2: =IF(Worksheet!F34="N",Worksheet!F45="M")*Worksheet!F21 -> 0 | L2: Mother Cust Not HH
J3: =IF(Worksheet!F34="N",Worksheet!F45="F")*Worksheet!F16 -> 0 | L3: Father Cust Not HH | U3: noncustodial
J4: =K4+K5 -> 0 | K4: =IF(Worksheet!F45="M",Worksheet!F34="Y")*Worksheet!F21 -> 0 | L4: Mother Head of HH | P4: Noncustodial | R4: Gross | S4: =IF(Worksheet!F45="m",Worksheet!F16,Worksheet!F21) -> 0 | U4: federal tax rates
J5: 50000 | K5: =IF(Worksheet!F45="F",Worksheet!F34="Y")*Worksheet!F16 -> 0 | L5: Father Head of HH | U5: Single | V5: Joint
E6: Federal | H6: 2013 | K6: =K4+K5 -> 0 | P6: Single | R6: Joint
D7: (HOH) | E7: Standard Deduction | H7: 8950 | N7: Stand. Deduction | P7: 6100 | R7: 12200 | U7: =IF(S4>E27,S4<E28)*F28 -> 0 | V7: =IF(S4>M27,S4<M28)*N28 -> 0
E8: Normal Exemption | H8: 3900 | N8: Normal Exempt | P8: 3900 | R8: 3900 | U8: =IF(S4>=E28,S4<E29)*F29 -> 0 | V8: =IF(S4>=M28,S4<M29)*N29 -> 0
E9: Available Exemption | H9: 3900 | N9: Total Deduction | P9: =SUM(P7:P8) -> 10000 | R9: =SUM(R7:R8) -> 16100 | U9: =IF(S4>=E29,S4<E30)*F30 -> 0 | V9: =IF(S4>=M29,S4<M30)*N30 -> 0
E10: Parent's Exemption | H10: 1 | N10: Fed Adj Gross | P10: =S4-P9 -> -10000 | R10: =S4-R9 -> -16100 | U10: =IF(S4>=E30,S4<E31)*F31 -> 0 | V10: =IF(S4>=M30,S4<M31)*N31 -> 0
E11: Exemption Value | H11: 3900 | U11: =IF(S4>=E31,S4<E32)*F32 -> 0 | V11: =IF(S4>=M31,S4<M32)*N32 -> 0
E12: Deduction's Total | H12: =H7+H8 -> 12850 | N12: Federal | O12: Single | P12: =U14 -> 0 | U12: =IF(S4>=E32,S4<E33)*F33 -> 0 | V12: =IF(S4>=M32,S4<M33)*N33 -> 0
E13: FEDERAL ADJ. GROSS | H13: =J5-H12 -> 37150 | O13: Joint | P13: =V14 -> 0 | U13: =IF(S4>=E33,E33,0) -> 0 | V13: =IF(S4>=M33,M33,0) -> 0
U14: =SUM(U7:U13) -> 0 | V14: =SUM(V7:V13) -> 0
E15: State | P15: State
D16: (HOH) | E16: Standard Ded. | H16: 9000 | P16: Single | R16: Joint | T16: Ks Margin Rate | V16: Single
E17: Normal Exemption | H17: 2250 | O17: Standard | P17: 3000 | R17: 9000 | V17: =IF(S4>I27,S4<I28)*0.035 -> 0
E18: # of Claims | H18: 2 | L18: =Worksheet!J151 -> 1 | N18: (Parent) | O18: Exemption | P18: 2250 | R18: 2250 | V18: =IF(S4>=I28,0.049) -> FALSE
E19: (parent plus number of child) | N19: Total Deduction | P19: 5250 | R19: 11250 | V19: =SUM(V17:V18) -> 0
E20: Exemption Value | H20: =H18*H17 -> 4500 | N20: KS Adj Gross | P20: =S4-P19 -> -5250 | R20: =S4-R19 -> -11250
E21: Ded. Total | H21: =H20+H16 -> 13500
E22: KANSAS ADJUST GROSS | H22: =J5-H21 -> 36500 | N22: Ks Margin Rate | O22: Ks | P22: =V19 -> 0 | R22: =V25 -> 0 | V22: Joint
V23: =IF(S4>I27,S4<I28)*0.035 -> 0
V24: =IF(S4>=I28,0.049) -> FALSE
E25: Federal Tax Rate | I25: State | M25: Federal Married filing Jointly | Q25: Federal Head of Household | V25: =SUM(V23:V24) -> 0
E26: Single | Q26: 0
E27: 0 | I27: 0 | J27: 3.5 | M27: 0 | Q27: 12400 | R27: 10
E28: 8700 | F28: 10 | I28: 15000 | J28: 4.9 | M28: 17400 | N28: 10 | Q28: 47350 | R28: 15 | S28: 1240
E29: 35350 | F29: 15 | I29: 30000 | M29: 70700 | N29: 15 | O29: 1740 | Q29: 122300 | R29: 25 | S29: 68483
E30: 85650 | F30: 25 | M30: 142700 | N30: 25 | O30: 9735 | Q30: 198050 | R30: 28 | S30: 25220
E31: 178650 | F31: 28 | M31: 217450 | N31: 28 | O31: 27735 | Q31: 388350 | R31: 33 | S31: 46430
E32: 388350 | F32: 33 | M32: 388350 | N32: 33 | O32: 48665 | Q32: 388351 | R32: 35 | S32: 109229
E33: 388351 | F33: 35 | M33: 388351 | N33: 35 | O33: 105062
E35: Head of Household Exemption
E36: Federal | I36: Kansas Increase | K36: KS Exempt.
E37: 2013 | I37: 2013 | K37: 2013
D38: Single | F38: 6100 | I38: 3000 | K38: 2250
D39: Head of Household | F39: 8950 | I39: 9000
D40: Benefit | F40: =F39-F38 -> 2850 | I40: =I39-I38 -> 6000
E41: HEAD OF HOUSEHOLD TAX BENEFIT
E42: =Worksheet!E10 -> 0 | G42: and | H42: =Worksheet!E11 -> 0
E43: =Worksheet!F12 -> 0 | K43: Kansas
E44: Head of Household Benefit | K44: Marginal Tax Rate
E45: Kansas | O45: Father | Q45: Mother
E46: Value of Extra Exemption | H46: =K38 -> 2250 | K46: =IF(J5>I27,J5<I28)*0.035 -> 0 | O46: =IF(K4>I27,J5<I28)*0.035 -> 0 | Q46: =IF(K5>I27,J5<I28)*0.035 -> 0 | R46: 2250
E47: Cust Parent's Marginal Tax Rate | H47: =K48 -> 0.049 | K47: =IF(J5>=I28,0.049) -> 0.049 | O47: =IF(K4>=I28,0.049) -> FALSE | Q47: =IF(K5>=I28,0.049) -> FALSE | S47: Father | T47: Mother
E48: Annual Tax Savings | H48: =H46*H47 -> 110.25 | K48: =K46+K47 -> 0.049 | O48: =O47*R46 -> 0 | Q48: =Q47*R46 -> 0 | S48: =O51 ->  | T48: =Q51 -> 
E49: Monthly Tax Savings | H49: =H48/12 -> 9.1875 | O49: =O48/12 -> 0 | Q49: =Q48/12 -> 0
E50: % Income Noncustodial | H50: =Worksheet!J147 ->  | J50: =H51 ->  | O50: =Worksheet!H147 ->  | Q50: =Worksheet!J147 -> 
E51: Noncustodial's Share | H51: =H50*H49/100 ->  | O51: =O50*O49/100 ->  | Q51: =Q50*Q49/100 -> 
E54: Standard Deduction Benefit | K54: Federal | L54: HOH | P54: Federal Married | R54: Federal Married
E55: Federal | H55: =F40 -> 2850 | K55: Marginal Tax Rate | T55: 2850
E56: Cust Parent's Marginal Tax Rate | H56: =IF(Worksheet!F34="Y",K62,P62) -> 15 | K56: =IF(J5>Q26,J5<Q27)*R27 -> 0 | P56: =IF(J5>M27,J5<M28)*N28 -> 0 | R56: =IF(L5>O27,L5<O28)*P28 -> 0 | T56: =U77 -> 0 | V56: =V77 -> 0
E57: Value Tax Savings | H57: =H56*H55/100 -> 427.5 | K57: =IF(J5>=Q27,J5<Q28)*R28 -> 0 | P57: =IF(J5>=M28,J5<M29)*N29 -> 15 | R57: =IF(L5>=O28,L5<O29)*P29 -> 0 | T57: =T56*T55/100 -> 0 | V57: =V56*T55/100 -> 0
K58: =IF(J5>=Q28,J5<Q29)*R29 -> 25 | P58: =IF(J5>=M29,J5<M30)*N30 -> 0 | R58: =IF(L5>=O29,L5<O30)*P30 -> 0
E59: Kansas | H59: =I40 -> 6000 | K59: =IF(J5>=Q29,J5<Q30)*R30 -> 0 | P59: =IF(J5>=M30,J5<M31)*N31 -> 0 | R59: =IF(L5>=O30,L5<O31)*P31 -> 0 | T59: 6000 | V59: 6000
E60: Cust Parent's Marginal Tax Rate | H60: =H47 -> 0.049 | K60: =IF(J5>Q30,J5<Q31)*R31 -> 0 | P60: =IF(J5>=M31,J5<M32)*N32 -> 0 | R60: =IF(L5>=O31,L5<O32)*P32 -> 0 | T60: =U77 -> 0 | V60: =V77 -> 0
E61: Value of Tax Savings | H61: =H59*H60 -> 294 | K61: =IF(J5>Q31,35)*R27 -> 0 | P61: =IF(J5>=M32,J5<M33)*N33 -> 0 | R61: =IF(L5>=O32,L5<O33)*P33 -> 0 | T61: =T60*T59 -> 0 | V61: =V60*V59 -> 0
E62: Total Tax Savings | H62: =H57+H61 -> 721.5 | K62: =SUM(K56:K61) -> 25 | P62: =SUM(P56:P61) -> 15 | R62: =SUM(R56:R61) -> 0 | T62: =T61+T57 -> 0 | V62: =V61+V57 -> 0
E63: Mother's Monthly Tax Savings | H63: =H62/12 -> 60.125 | T63: =T62/12 -> 0 | V63: =V62/12 -> 0
E64: Noncust Parent's % of Income | H64: =H50 ->  | T64: =T63/12 -> 0 | V64: =V63/12 -> 0
E65: Noncust Parent's Share | H65: =H64*H63/100 ->  | J65: =H65 ->  | T65: =T64*T63/100 -> 0 | V65: =V63*V64/100 -> 0
E66: Adjustment | J66: =J50+J65 ->  | M66: =J66 ->  | T66: =T65+U48 -> 0 | V66: =V65+V48 -> 0
E67: Remove HOH | J67: =IF(K4=0,K5=0)*-J66 ->  | V67: =T66-V66 -> 0
E68: TOTAL ADJUSTMENT | J68: =J66+J67 ->  | M68: =ROUND(J66,0) -> 
E70: If not alternate | G70: Assumes Single then Joint | U70: =IF(M5>S26,M5<S27)*T27 -> 0 | V70: =IF(M4>S26,M4<S27)*T27 -> 0
E71: Exemption x tax rate is annual value | U71: =IF(M5>=S27,M5<S28)*T28 -> 0 | V71: =IF(M4>S27,M4<S28)*T28 -> 0
E72: Federal | U72: =IF(M5>=S28,M5<S29)*T29 -> 0 | V72: =IF(M4>S28,M4<S29)*T29 -> 0
E73: =H8 -> 3900 | F73: x | G73: =IF(Worksheet!F43="y",'Tax Rate'!P12)*P13 -> 0 | U73: =IF(M5>=S29,M5<S30)*T30 -> 0 | V73: =IF(M4>S29,M4<S30)*T30 -> 0
U74: =IF(M5>=S30,M5<S31)*T31 -> 0 | V74: =IF(M4>S30,M4<S31)*T31 -> 0
E75: State | U75: =IF(M5>=S31,M5<S32)*T32 -> 0 | V75: =IF(M4>S31,M4<S32)*T32 -> 0
E76: =H17 -> 2250 | F76: x | G76: =IF(Worksheet!F43="y",'Tax Rate'!P22)*R22 -> 0 | U76: =IF(M5>=S32,M5<S33)*T33 -> 0 | V76: =IF(M4>S32,M4<S33)*T33 -> 0
G77: =G73+G76 -> 0 | U77: =SUM(U70:U76) -> 0 | V77: =SUM(V70:V76) -> 0
G78: =G77/2 -> 0

Sheet Age of Children (hidden)
G2: 0-5 | H2: 6-11 | I2: 12-18
B3: Child 1 | C3: =Worksheet!F48 -> 00:00:00 | E3: 0 | G3: =IF(C6>E3,C6<E4)*1 -> 0 | H3: =IF(C6>=E4,C6<E5)*1 -> 0 | I3: =IF(C6>=E5,1,0) -> 1
C4: =TODAY() -> 2013-09-11 | E4: 5.5 | G4: =IF(C11>E3,C11<E4)*1 -> 0 | H4: =IF(C11>=E4,C11<E5)*1 -> 0 | I4: =IF(C11>=E5,1,0) -> 0
C5: =C4-C3 -> 41528 | E5: 11.5 | G5: =IF(C16>E3,C16<E4)*1 -> 0 | H5: =IF(C16>=E4,C16<E5)*1 -> 0 | I5: =IF(C16>=E5,1,0) -> 0
C6: =C5/365 -> 113.7753425 | G6: =IF(C21>E3,C21<E4)*1 -> 0 | H6: =IF(C21>=E4,C21<E5)*1 -> 0 | I6: =IF(C21>=E5,1,0) -> 0
G7: =IF(C26>E3,C26<E4)*1 -> 0 | H7: =IF(C26>=E4,C26<E5)*1 -> 0 | I7: =IF(C26>=E5,1,0) -> 0
B8: Child 2 | C8: =Worksheet!F52 -> NA | G8: =IF(C31>E3,C31<E4)*1 -> 0 | H8: =IF(C31>=E4,C31<E5)*1 -> 0 | I8: =IF(C31>=E5,1,0) -> 0
C9: =TODAY() -> 2013-09-11 | G9: =SUM(G3:G8) -> 0 | H9: =SUM(H3:H8) -> 0 | I9: =SUM(I3:I8) -> 1
C10: =IF(C8="na",0,C9-C8) -> 0
C11: =C10/365 -> 0
B13: Child 3 | C13: =Worksheet!F56 -> NA
C14: =TODAY() -> 2013-09-11
C15: =IF(C13="na",0,C14-C13) -> 0
C16: =C15/365 -> 0
B18: Child 4 | C18: =Worksheet!F60 -> NA
C19: =TODAY() -> 2013-09-11
C20: =IF(C18="na",0,C19-C18) -> 0
C21: =C20/365 -> 0
B23: Child 5 | C23: =Worksheet!F61 -> NA
C24: =TODAY() -> 2013-09-11
C25: =IF(C23="na",0,C24-C23) -> 0
C26: =C25/365 -> 0
B28: Child 6 | C28: =Worksheet!F63 -> NA
C29: =TODAY() -> 2013-09-11
C30: =IF(C28="na",0,C29-C28) -> 0
C31: =C30/365 -> 0

Sheet Tax Cons.
E1: =Worksheet!D162 -> Case No. | F1: =Worksheet!E162 -> 0
H2: Exempt Value | I2: Non Cust Tax Rate | J2: Product
E3: Tax Ex. Not Alternated
E4: Tax Exemption (Federal) | H4: 3900 | I4: =H40 -> 0 | J4: =H4*I4 -> 0
E5: Tax Exemption (State) | H5: 2250 | I5: =H44 -> 0 | J5: =H5*I5 -> 0
E6: Annual Value | J6: =SUM(J4:J5) -> 0
E7: Noncustodial % of Earnings | J7: =H48 -> 
E8: Noncustodial's Value | J8: =J6*J7/100 -> 
E9: Monthly Value | J9: =J8/12 -> 
E10: Number of More Children Claimed by Mother | J10: =Worksheet!N73 -> 0 | M10: Mother | N10: =IF(J10>0,M20,-M20) -> 
E11: Number of More Children Claimed by Father | J11: =Worksheet!M73 -> 0 | M11: Father | N11: =IF(J11>0,M20,-M20) -> 
E12: Sum | J12: =J10+J11 -> 0
E13: Tax Consideration | J13: =J9*J12 -> 
E15: Additional Tax Credit | H15: 1000 | J15: 1000
E16: Noncustodial % of Earnings | J16: =J7 -> 
E17: Annual Value Noncustodial | J17: =J15*J16/100 -> 
E18: Monthly Value Noncustodial | J18: =J17/12 -> 
E19: Number of More Children Claimed by Mother | J19: =J10 -> 0
E20: Number of More Children Claimed by Father | J20: =J11 -> 0 | M20: =J13+J22 -> 
E21: Sum | J21: =J12 -> 0
E22: Tax Consideration | J22: =J18*J21 -> 
E24: Head of Household
E25: Federal | H25: 2850 | I25: =H41 -> 0 | J25: =H25*I25 -> 0 | K25: =H25*I25 -> 0
E26: State | H26: 6000 | I26: =H45 -> 0 | J26: =H26*I26 -> 0
E27: Add. | H27: 2250 | I27: =H45 -> 0 | J27: 0
E28: Annual Value | J28: =SUM(J25:J27) -> 0
E29: Noncustodial % of Earnings | J29: =H48 -> 
E30: Noncustodial's Value | J30: =J28*J29/100 -> 
E31: Monthly Value | J31: =J30/12 -> 
E33: Exemption Value | J33: =J13 -> 
E34: Tax Credit Value | J34: =J22 -> 
E35: Head of Household Value | J35: =J31 -> 
E37: Total Tax Consideration | J37: =SUM(J33:J35) -> 
E39: Federal
E40: Noncustodial Parent | H40: ='Tax Rates'!K57 -> 0
E41: Custodial | H41: ='Tax Rates'!K50 -> 0
E43: State
E44: Noncustodial | H44: ='Tax Rates'!M57 -> 0
E45: Custodial | H45: ='Tax Rates'!M50 -> 0
E47: Percent Earnings
E48: Noncustodial | H48: =IF(Worksheet!F45="Mother",Worksheet!J147,Worksheet!H147) -> 
E51: =IF(Worksheet!F45="Mother",1,0) -> 0 | G51: =IF(Worksheet!F33="Head of Household",1,0) -> 0 | H51: =IF(E51+G51=2,J35,0) -> 0 | I51: =-H52 -> 0 | J51: =SUM(H51:I51) -> 0
E52: =IF(Worksheet!F45="Father",1,0) -> 0 | G52: =IF(Worksheet!F33="Head of Household",1,0) -> 0 | H52: =IF(E52+G52=2,J35,0) -> 0 | I52: =-H51 -> 0 | J52: =SUM(H52:I52) -> 0

Sheet EPT Final
D1: =Worksheet!D162 -> Case No. | E1: =Worksheet!E162 -> 0
F2: Equal Parenting Time Worksheet
D4: Step 1 | E4: 1 | F4: Higher Amount from Line F.3 | K4: =IF(Worksheet!H198>Worksheet!J198,Worksheet!H198,Worksheet!J198) -> 
E5: 2 | F5: Lower Amount from Line F.3 | K5: =IF(Worksheet!J198<Worksheet!H198,Worksheet!J198,Worksheet!H198) -> 
E6: 3 | F6: Subtract 2 from 1 | K6: =K4-K5 -> 
E7: 4 | F7: Line 3 x .5 | K7: =K6*0.5 -> 
D8: Step 2 | E8: 5 | F8: Enter the total Line D.1 | K8: =Worksheet!L141 -> 0
E9: 6 | F9: Enter the total Line D.3 | K9: =Worksheet!L156 -> 
E10: 7 | F10: If written agreement provide clothing (Y or N) | K10: =Worksheet!F90 -> N
E11: 8 | F11: If no written agreement:
D12: Step 2a | F12: If the amount on line 5 is:
F13: a. Equal to or less than $4690, enter 13% | K13: =IF(K8<=F13,0.13,0) -> 0.13
F14: b. Greater than $4690 but less than $8125, enter 15% | K14: =IF(K8>F13,K8<F14,)*0.15 -> 0
F15: c. Equal to or greater than $8126, enter 18% | K15: =IF(K8>=F15,0.18,0) -> 0
E16: 9 | F16: Sum Unwritten | K16: =SUM(K13:K15) -> 0.13
E17: 10 | F17: Percentage to apply, if no written agreement | K17: =IF(K10="N",K16,0) -> 0.13
D18: Step 2b | E18: 11 | F18: If written agreement
F19: a. Equal to or less than $4690, enter 11% | K19: =IF(K8<=F13,0.11,0) -> 0.11
F20: b. Greater than $4690 but less than $8125, enter 13% | K20: =IF(K8>F13,K8<F14,)*0.13 -> 0
F21: c. Equal to or greater than $8126, enter 16% | K21: =IF(K8>=F15,0.16,0) -> 0
E22: 12 | F22: Sum Written | K22: =SUM(K19:K21) -> 0.11
E23: 12 | F23: Percentage to apply, if written agreement | K23: =IF(K10="Y",K22,0) -> 0
E24: 14 | F24: Sum unwritten and written | K24: =K17+K23 -> 0.13
E25: 13 | F25: Multiply Line 6 by the percentage | K25: =K24*K9 -> 
D26: Step 3 | E26: 14 | F26: If parent designated to pay all of the direct
F27: expenses is:
F28: a. the parent with the lower adjusted total go to line 15
F29: b. The parent with the higher income go to line 16
F30: Mother | H30: Father
F31: =Worksheet!H198 ->  | H31: =Worksheet!J198 -> 
F32: Designated to Pay (M or F) | K32: =Worksheet!F92 -> M
E33: 15 | F33: Add Line 4 and 10 | K33: =N33 ->  | N33: ='EPT Draft'!R24 -> 
E34: 16 | F34: Subtract Line 10 and 4 | K34: =N34 ->  | N34: ='EPT Draft'!R25 -> 

Sheet Schedules (hidden)
C1: One | F1: Two | I1: Three | L1: Four | O1: Five | R1: Six
A2: Income | B2: 0-5 | C2: 6-11 | D2: 12-19 | E2: 0-5 | F2: 6-11 | G2: 12-19 | H2: 0-5 | I2: 6-11 | J2: 12-19 | K2: 0-5 | L2: 6-11 | M2: 12-19 | N2: 0-5 | O2: 6-11 | P2: 12-19 | Q2: 0-5 | R2: 6-11 | S2: 12-19 | V2: Income | W2: 0-5 | X2: 6-11 | Y2: 12-18 | Z2: Income | AA2: 0-5 | AB2: 6-11 | AC2: 12-18
A3: 50 | B3: 8 | C3: 10 | D3: 11 | E3: 6 | F3: 7 | G3: 8 | H3: 5 | I3: 6 | J3: 7 | K3: 4 | L3: 5 | M3: 6 | N3: 4 | O3: 4 | P3: 5 | Q3: 3 | R3: 4 | S3: 4 | V3: 1650 | W3: 275 | X3: 317 | Y3: 344 | Z3: 4500 | AA3: 628 | AB3: 723 | AC3: 786
A4: 100 | B4: 17 | C4: 19 | D4: 21 | E4: 12 | F4: 14 | G4: 16 | H4: 11 | I4: 12 | J4: 13 | K4: 9 | L4: 10 | M4: 11 | N4: 8 | O4: 9 | P4: 10 | Q4: 7 | R4: 8 | S4: 9 | V4: 1700 | W4: 282 | X4: 324 | Y4: 353 | Z4: 4600 | AA4: 640 | AB4: 736 | AC4: 800 | AF4: =IF(Worksheet!L141<2000,ROUND(Worksheet!L141/50,0)*50,ROUND(Worksheet!L141/100,0)*100) -> 0 | AG4: Rounded Income
A5: 150 | B5: 25 | C5: 29 | D5: 32 | E5: 19 | F5: 21 | G5: 23 | H5: 16 | I5: 19 | J5: 20 | K5: 13 | L5: 15 | M5: 17 | N5: 12 | O5: 13 | P5: 15 | Q5: 10 | R5: 12 | S5: 13 | V5: 1750 | W5: 289 | X5: 332 | Y5: 361 | Z5: 4700 | AA5: 651 | AB5: 749 | AC5: 814 | AE5: =Worksheet!L141 -> 0
A6: 200 | B6: 34 | C6: 39 | D6: 42 | E6: 25 | F6: 29 | G6: 31 | H6: 22 | I6: 25 | J6: 27 | K6: 18 | L6: 20 | M6: 22 | N6: 16 | O6: 18 | P6: 20 | Q6: 14 | R6: 16 | S6: 17 | V6: 1800 | W6: 296 | X6: 340 | Y6: 370 | Z6: 4800 | AA6: 663 | AB6: 762 | AC6: 828 | AE6: =IF(AF4<=15500,AF4,100) -> 0 | AF6: Income
A7: 250 | B7: 42 | C7: 49 | D7: 53 | E7: 31 | F7: 36 | G7: 39 | H7: 27 | I7: 31 | J7: 34 | K7: 22 | L7: 26 | M7: 28 | N7: 20 | O7: 22 | P7: 24 | Q7: 17 | R7: 20 | S7: 22 | V7: 1850 | W7: 302 | X7: 348 | Y7: 378 | Z7: 4900 | AA7: 674 | AB7: 775 | AC7: 843
A8: 300 | B8: 51 | C8: 58 | D8: 63 | E8: 37 | F8: 43 | G8: 47 | H8: 32 | I8: 37 | J8: 40 | K8: 27 | L8: 31 | M8: 33 | N8: 23 | O8: 27 | P8: 29 | Q8: 21 | R8: 24 | S8: 26 | V8: 1900 | W8: 309 | X8: 356 | Y8: 386 | Z8: 5000 | AA8: 685 | AB8: 788 | AC8: 857 | AE8: Amt: | AG8: Age: | AH8: Group | AI8: =Worksheet!I84 -> 0 | AJ8: Number of Children if Multi Family
A9: 350 | B9: 59 | C9: 68 | D9: 74 | E9: 43 | F9: 50 | G9: 54 | H9: 38 | I9: 43 | J9: 47 | K9: 31 | L9: 36 | M9: 39 | N9: 27 | O9: 31 | P9: 34 | Q9: 24 | R9: 28 | S9: 30 | V9: 1950 | W9: 316 | X9: 363 | Y9: 395 | Z9: 5100 | AA9: 697 | AB9: 801 | AC9: 871 | AD9: =IF(ISBLANK(AG9),"",VLOOKUP(AE$6,A$3:S$177,ROUNDUP(AG9/5,0)+1+(AG$15-1)*3)) ->  | AE9: =AD9 ->  | AF9: Child 1 | AG9: ='Age of Children'!C6 -> 113.7753425 | AH9: =IF(AND(AG9>=18,Worksheet!I48="Y"),99,IF(AG9>=11.5,3,IF(AG9>=5.5,2,IF(AG9>0,1,99)))) -> 3 | AI9: =IF(AG9>1,1) -> 1
A10: 400 | B10: 67 | C10: 78 | D10: 84 | E10: 50 | F10: 57 | G10: 62 | H10: 43 | I10: 50 | J10: 54 | K10: 36 | L10: 41 | M10: 44 | N10: 31 | O10: 36 | P10: 39 | Q10: 28 | R10: 32 | S10: 35 | V10: 2000 | W10: 322 | X10: 371 | Y10: 403 | Z10: 5200 | AA10: 708 | AB10: 814 | AC10: 885 | AD10: =IF(ISBLANK(AG10),"",VLOOKUP(AE$6,A$3:S$177,ROUNDUP(AG10/5,0)+1+(AG$15-1)*3)) ->  | AF10: Child 2 | AG10: ='Age of Children'!C11 -> 0 | AH10: =IF(AND(AG10>=18,Worksheet!I52="Y"),99,IF(AG10>=11.5,3,IF(AG10>=5.5,2,IF(AG10>0,1,99)))) -> 99 | AI10: FALSE
A11: 450 | B11: 76 | C11: 87 | D11: 95 | E11: 56 | F11: 64 | G11: 70 | H11: 48 | I11: 56 | J11: 61 | K11: 40 | L11: 46 | M11: 50 | N11: 35 | O11: 40 | P11: 44 | Q11: 31 | R11: 36 | S11: 39 | V11: 2100 | W11: 336 | X11: 386 | Y11: 420 | Z11: 5300 | AA11: 719 | AB11: 827 | AC11: 899 | AD11: =IF(ISBLANK(AG11),"",VLOOKUP(AE$6,A$3:S$177,ROUNDUP(AG11/5,0)+1+(AG$15-1)*3)) ->  | AF11: Child 3 | AG11: ='Age of Children'!C16 -> 0 | AH11: =IF(AND(AG11>=18,Worksheet!I56="Y"),99,IF(AG11>=11.5,3,IF(AG11>=5.5,2,IF(AG11>0,1,99)))) -> 99 | AI11: FALSE
A12: 500 | B12: 84 | C12: 97 | D12: 105 | E12: 62 | F12: 71 | G12: 78 | H12: 54 | I12: 62 | J12: 67 | K12: 44 | L12: 51 | M12: 56 | N12: 39 | O12: 45 | P12: 49 | Q12: 35 | R12: 40 | S12: 43 | V12: 2200 | W12: 349 | X12: 401 | Y12: 436 | Z12: 5400 | AA12: 730 | AB12: 840 | AC12: 913 | AD12: =IF(ISBLANK(AG12),"",VLOOKUP(AE$6,A$3:S$177,ROUNDUP(AG12/5,0)+1+(AG$15-1)*3)) ->  | AF12: Child 4 | AG12: ='Age of Children'!C21 -> 0 | AH12: =IF(AND(AG12>=18,Worksheet!I60="Y"),99,IF(AG12>=11.5,3,IF(AG12>=5.5,2,IF(AG12>0,1,99)))) -> 99 | AI12: FALSE
A13: 550 | B13: 93 | C13: 107 | D13: 116 | E13: 68 | F13: 79 | G13: 85 | H13: 59 | I13: 68 | J13: 74 | K13: 49 | L13: 56 | M13: 61 | N13: 43 | O13: 49 | P13: 54 | Q13: 38 | R13: 44 | S13: 47 | V13: 2300 | W13: 362 | X13: 416 | Y13: 452 | Z13: 5500 | AA13: 741 | AB13: 852 | AC13: 927 | AD13: =IF(ISBLANK(AG13),"",VLOOKUP(AE$6,A$3:S$177,ROUNDUP(AG13/5,0)+1+(AG$15-1)*3)) ->  | AF13: Child 5 | AG13: ='Age of Children'!C26 -> 0 | AH13: =IF(AND(AG13>=18,Worksheet!I61="Y"),99,IF(AG13>=11.5,3,IF(AG13>=5.5,2,IF(AG13>0,1,99)))) -> 99 | AI13: FALSE
A14: 600 | B14: 101 | C14: 116 | D14: 127 | E14: 75 | F14: 86 | G14: 93 | H14: 65 | I14: 74 | J14: 81 | K14: 53 | L14: 61 | M14: 67 | N14: 47 | O14: 54 | P14: 59 | Q14: 41 | R14: 48 | S14: 52 | V14: 2400 | W14: 375 | X14: 431 | Y14: 468 | Z14: 5600 | AA14: 752 | AB14: 865 | AC14: 940 | AD14: =IF(ISBLANK(AG14),"",VLOOKUP(AE$6,A$3:S$177,ROUNDUP(AG13/5,0)+1+(AG$15-1)*3)) ->  | AF14: Child 6 | AG14: ='Age of Children'!C31 -> 0 | AH14: =IF(AND(AG14>=18,Worksheet!I63="Y"),99,IF(AG14>=11.5,3,IF(AG14>=5.5,2,IF(AG14>0,1,99)))) -> 99 | AI14: FALSE
A15: 650 | B15: 110 | C15: 126 | D15: 137 | E15: 81 | F15: 93 | G15: 101 | H15: 70 | I15: 81 | J15: 88 | K15: 58 | L15: 66 | M15: 72 | N15: 51 | O15: 58 | P15: 63 | Q15: 45 | R15: 52 | S15: 56 | V15: 2500 | W15: 387 | X15: 446 | Y15: 484 | Z15: 5700 | AA15: 763 | AB15: 878 | AC15: 954 | AF15: Total Amount | AG15: =AI15 -> 1 | AI15: =SUM(AI8:AI14) -> 1 | AJ15: =AI9+AI10+AI11+AI12+AI13+AI14 -> 1
A16: 700 | B16: 118 | C16: 136 | D16: 148 | E16: 87 | F16: 100 | G16: 109 | H16: 75 | I16: 87 | J16: 94 | K16: 62 | L16: 72 | M16: 78 | N16: 55 | O16: 63 | P16: 68 | Q16: 48 | R16: 56 | S16: 60 | V16: 2600 | W16: 400 | X16: 460 | Y16: 500 | Z16: 5800 | AA16: 774 | AB16: 890 | AC16: 968 | AJ16: 1 | AK16: 2 | AL16: 3
A17: 750 | B17: 127 | C17: 146 | D17: 158 | E17: 93 | F17: 107 | G17: 116 | H17: 81 | I17: 93 | J17: 101 | K17: 67 | L17: 77 | M17: 83 | N17: 59 | O17: 67 | P17: 73 | Q17: 52 | R17: 60 | S17: 65 | V17: 2700 | W17: 413 | X17: 475 | Y17: 516 | Z17: 5900 | AA17: 785 | AB17: 903 | AC17: 982 | AD17: 0-6.4 | AE17: 6.5-11.4 | AF17: 11.5-18 | AH17: Age of Children | AJ17: 0-5 | AK17: 6-11 | AL17: 12-18 | AM17: Total
A18: 800 | B18: 135 | C18: 155 | D18: 169 | E18: 99 | F18: 114 | G18: 124 | H18: 86 | I18: 99 | J18: 108 | K18: 71 | L18: 82 | M18: 89 | N18: 62 | O18: 72 | P18: 78 | Q18: 55 | R18: 63 | S18: 69 | V18: 2800 | W18: 425 | X18: 489 | Y18: 532 | Z18: 6000 | AA18: 796 | AB18: 916 | AC18: 995 | AD18: =IF(AG9<5.5,AE9,0) -> 0 | AE18: =AND(AG9>=5.5,AG9<11.5,AE9)*AE9 ->  | AF18: =AND(AG9>=11.5,AE9)*AE9 ->  | AH18: Number Per Age Category | AJ18: =COUNTIF(AH9:AH14,1) -> 0 | AK18: =COUNTIF(AH9:AH14,2) -> 0 | AL18: =COUNTIF(AH9:AH14,3) -> 1 | AM18: =AL18+AK18+AJ18+AI8 -> 1
A19: 850 | B19: 143 | C19: 165 | D19: 179 | E19: 106 | F19: 121 | G19: 132 | H19: 92 | I19: 105 | J19: 114 | K19: 76 | L19: 87 | M19: 94 | N19: 66 | O19: 76 | P19: 83 | Q19: 59 | R19: 67 | S19: 73 | V19: 2900 | W19: 438 | X19: 503 | Y19: 547 | Z19: 6100 | AA19: 807 | AB19: 928 | AC19: 1009 | AD19: =AND(AG10>0,AG10<5.5)*AE10 ->  | AH19: Amount Per Child | AJ19: =IF(AJ18=0,0,AJ23) -> 0 | AK19: =IF(AK18=0,0,AK23) -> 0 | AL19: =IF(AL18=0,0,AL23) -> 
A20: 900 | B20: 152 | C20: 175 | D20: 190 | E20: 112 | F20: 129 | G20: 140 | H20: 97 | I20: 111 | J20: 121 | K20: 80 | L20: 92 | M20: 100 | N20: 70 | O20: 81 | P20: 88 | Q20: 62 | R20: 71 | S20: 78 | V20: 3000 | W20: 450 | X20: 518 | Y20: 563 | Z20: 6200 | AA20: 818 | AB20: 941 | AC20: 1023 | AD20: =AND(AG11>0,AG11<5.5)*AE11 -> 
A21: 950 | B21: 160 | C21: 184 | D21: 200 | E21: 118 | F21: 136 | G21: 147 | H21: 102 | I21: 118 | J21: 128 | K21: 84 | L21: 97 | M21: 106 | N21: 74 | O21: 85 | P21: 93 | Q21: 66 | R21: 75 | S21: 82 | V21: 3100 | W21: 462 | X21: 532 | Y21: 578 | Z21: 6300 | AA21: 829 | AB21: 953 | AC21: 1036 | AD21: =AND(AG12>0,AG12<5.5)*AE12 ->  | AJ21: =Extended!I25 -> 0 | AK21: =Extended!I26 -> 0 | AL21: =Extended!I27 -> 0
A22: 1000 | B22: 169 | C22: 194 | D22: 211 | E22: 124 | F22: 143 | G22: 155 | H22: 108 | I22: 124 | J22: 135 | K22: 89 | L22: 102 | M22: 111 | N22: 78 | O22: 90 | P22: 98 | Q22: 69 | R22: 79 | S22: 86 | V22: 3200 | W22: 475 | X22: 546 | Y22: 593 | Z22: 6400 | AA22: 840 | AB22: 966 | AC22: 1050 | AJ22: =VLOOKUP($AE$6,$A$3:$S$177,1+1+($AM$18-1)*3) ->  | AK22: =VLOOKUP($AE$6,$A$3:$S$177,1+2+($AM$18-1)*3) ->  | AL22: =VLOOKUP($AE$6,$A$3:$S$177,1+3+($AM$18-1)*3) -> 
A23: 1050 | B23: 177 | C23: 204 | D23: 221 | E23: 130 | F23: 150 | G23: 163 | H23: 113 | I23: 130 | J23: 141 | K23: 93 | L23: 107 | M23: 117 | N23: 82 | O23: 94 | P23: 102 | Q23: 72 | R23: 83 | S23: 91 | V23: 3300 | W23: 487 | X23: 560 | Y23: 609 | Z23: 6500 | AA23: 850 | AB23: 978 | AC23: 1063 | AJ23: =IF(AJ22>25,AJ22,AJ21) ->  | AK23: =IF(AK22>25,AK22,AK21) ->  | AL23: =IF(AL22>25,AL22,AL21) ->  | AN23: =IF(AK18=0,0,AK22) -> 0
A24: 1100 | B24: 186 | C24: 213 | D24: 232 | E24: 137 | F24: 157 | G24: 171 | H24: 119 | I24: 136 | J24: 148 | K24: 98 | L24: 112 | M24: 122 | N24: 86 | O24: 99 | P24: 107 | Q24: 76 | R24: 87 | S24: 95 | V24: 3400 | W24: 499 | X24: 574 | Y24: 624 | Z24: 6600 | AA24: 861 | AB24: 990 | AC24: 1076 | AD24: =SUM(AD18:AD22) ->  | AE24: =SUM(AE18:AE22) ->  | AF24: =SUM(AF18:AF22) -> 
A25: 1150 | B25: 194 | C25: 223 | D25: 243 | E25: 143 | F25: 164 | G25: 179 | H25: 124 | I25: 142 | J25: 155 | K25: 102 | L25: 118 | M25: 128 | N25: 90 | O25: 103 | P25: 112 | Q25: 79 | R25: 91 | S25: 99 | V25: 3500 | W25: 511 | X25: 588 | Y25: 639 | Z25: 6700 | AA25: 872 | AB25: 1003 | AC25: 1090 | AD25: =Worksheet!G151 -> 0 | AE25: =Worksheet!H151 -> 0 | AF25: =Worksheet!I151 -> 1
A26: 1200 | B26: 202 | C26: 233 | D26: 253 | E26: 149 | F26: 171 | G26: 186 | H26: 129 | I26: 149 | J26: 162 | K26: 107 | L26: 123 | M26: 133 | N26: 94 | O26: 108 | P26: 117 | Q26: 83 | R26: 95 | S26: 104 | V26: 3600 | W26: 523 | X26: 601 | Y26: 654 | Z26: 6800 | AA26: 883 | AB26: 1015 | AC26: 1103 | AD26: =AD24/AD25 ->  | AE26: =AE24/AE25 ->  | AF26: =AF24/AF25 -> 
A27: 1250 | B27: 211 | C27: 243 | D27: 264 | E27: 155 | F27: 179 | G27: 194 | H27: 135 | I27: 155 | J27: 168 | K27: 111 | L27: 128 | M27: 139 | N27: 98 | O27: 112 | P27: 122 | Q27: 86 | R27: 99 | S27: 108 | V27: 3700 | W27: 535 | X27: 615 | Y27: 669 | Z27: 6900 | AA27: 893 | AB27: 1027 | AC27: 1117 | AD27: =IF(AD24>0,AD24/AD25,0) ->  | AE27: =IF(AE24>0,AE24/AE25,0) -> 
A28: 1300 | B28: 219 | C28: 252 | D28: 274 | E28: 161 | F28: 186 | G28: 202 | H28: 140 | I28: 161 | J28: 175 | K28: 116 | L28: 133 | M28: 144 | N28: 101 | O28: 117 | P28: 127 | Q28: 90 | R28: 103 | S28: 112 | V28: 3800 | W28: 547 | X28: 629 | Y28: 684 | Z28: 7000 | AA28: 904 | AB28: 1039 | AC28: 1130
A29: 1350 | B29: 228 | C29: 262 | D29: 285 | E29: 168 | F29: 193 | G29: 210 | H29: 145 | I29: 167 | J29: 182 | K29: 120 | L29: 138 | M29: 150 | N29: 105 | O29: 121 | P29: 132 | Q29: 93 | R29: 107 | S29: 116 | V29: 3900 | W29: 559 | X29: 642 | Y29: 698 | Z29: 7100 | AA29: 915 | AB29: 1052 | AC29: 1143
A30: 1400 | B30: 236 | C30: 272 | D30: 295 | E30: 174 | F30: 200 | G30: 217 | H30: 151 | I30: 173 | J30: 189 | K30: 124 | L30: 143 | M30: 156 | N30: 109 | O30: 126 | P30: 137 | Q30: 97 | R30: 111 | S30: 121 | V30: 4000 | W30: 570 | X30: 656 | Y30: 713 | Z30: 7200 | AA30: 925 | AB30: 1064 | AC30: 1156
A31: 1450 | B31: 245 | C31: 281 | D31: 306 | E31: 180 | F31: 207 | G31: 225 | H31: 156 | I31: 180 | J31: 195 | K31: 129 | L31: 148 | M31: 161 | N31: 113 | O31: 130 | P31: 141 | Q31: 100 | R31: 115 | S31: 125 | V31: 4100 | W31: 582 | X31: 669 | Y31: 728 | Z31: 7300 | AA31: 936 | AB31: 1076 | AC31: 1170
A32: 1500 | B32: 253 | C32: 291 | D32: 316 | E32: 186 | F32: 214 | G32: 233 | H32: 162 | I32: 186 | J32: 202 | K32: 133 | L32: 153 | M32: 167 | N32: 117 | O32: 135 | P32: 146 | Q32: 104 | R32: 119 | S32: 129 | V32: 4200 | W32: 594 | X32: 683 | Y32: 742 | Z32: 7400 | AA32: 946 | AB32: 1088 | AC32: 1183
A33: 1550 | B33: 261 | C33: 301 | D33: 327 | E33: 193 | F33: 221 | G33: 241 | H33: 167 | I33: 192 | J33: 209 | K33: 138 | L33: 159 | M33: 172 | N33: 121 | O33: 139 | P33: 151 | Q33: 107 | R33: 123 | S33: 134 | V33: 4300 | W33: 605 | X33: 696 | Y33: 757 | Z33: 7500 | AA33: 957 | AB33: 1100 | AC33: 1196
A34: 1600 | B34: 268 | C34: 309 | D34: 336 | E34: 199 | F34: 229 | G34: 248 | H34: 172 | I34: 198 | J34: 215 | K34: 142 | L34: 164 | M34: 178 | N34: 125 | O34: 144 | P34: 156 | Q34: 110 | R34: 127 | S34: 138 | V34: 4400 | W34: 617 | X34: 709 | Y34: 771 | Z34: 7600 | AA34: 967 | AB34: 1112 | AC34: 1209
A35: 1650 | B35: 275 | C35: 317 | D35: 344 | E35: 205 | F35: 236 | G35: 256 | H35: 178 | I35: 204 | J35: 222 | K35: 147 | L35: 169 | M35: 183 | N35: 129 | O35: 148 | P35: 161 | Q35: 114 | R35: 131 | S35: 142
A36: 1700 | B36: 282 | C36: 324 | D36: 353 | E36: 211 | F36: 243 | G36: 264 | H36: 183 | I36: 211 | J36: 229 | K36: 151 | L36: 174 | M36: 189 | N36: 133 | O36: 153 | P36: 166 | Q36: 117 | R36: 135 | S36: 147
A37: 1750 | B37: 289 | C37: 332 | D37: 361 | E37: 217 | F37: 250 | G37: 272 | H37: 189 | I37: 217 | J37: 236 | K37: 156 | L37: 179 | M37: 195 | N37: 137 | O37: 157 | P37: 171 | Q37: 121 | R37: 139 | S37: 151
A38: 1800 | B38: 296 | C38: 340 | D38: 370 | E38: 224 | F38: 257 | G38: 279 | H38: 194 | I38: 223 | J38: 242 | K38: 160 | L38: 184 | M38: 200 | N38: 140 | O38: 162 | P38: 176 | Q38: 124 | R38: 143 | S38: 155
A39: 1850 | B39: 302 | C39: 348 | D39: 378 | E39: 230 | F39: 264 | G39: 287 | H39: 199 | I39: 229 | J39: 249 | K39: 165 | L39: 189 | M39: 206 | N39: 144 | O39: 166 | P39: 180 | Q39: 128 | R39: 147 | S39: 160
A40: 1900 | B40: 309 | C40: 356 | D40: 386 | E40: 235 | F40: 270 | G40: 293 | H40: 205 | I40: 235 | J40: 256 | K40: 169 | L40: 194 | M40: 211 | N40: 148 | O40: 170 | P40: 185 | Q40: 131 | R40: 151 | S40: 164
A41: 1950 | B41: 316 | C41: 363 | D41: 395 | E41: 240 | F41: 276 | G41: 300 | H41: 210 | I41: 242 | J41: 263 | K41: 173 | L41: 199 | M41: 217 | N41: 152 | O41: 175 | P41: 190 | Q41: 135 | R41: 155 | S41: 168
A42: 2000 | B42: 322 | C42: 371 | D42: 403 | E42: 245 | F42: 281 | G42: 306 | H42: 215 | I42: 248 | J42: 269 | K42: 178 | L42: 205 | M42: 222 | N42: 156 | O42: 179 | P42: 195 | Q42: 138 | R42: 159 | S42: 173
A43: 2100 | B43: 336 | C43: 386 | D43: 420 | E43: 254 | F43: 293 | G43: 318 | H43: 226 | I43: 260 | J43: 283 | K43: 187 | L43: 215 | M43: 233 | N43: 164 | O43: 188 | P43: 205 | Q43: 145 | R43: 167 | S43: 181
A44: 2200 | B44: 349 | C44: 401 | D44: 436 | E44: 264 | F44: 304 | G44: 330 | H44: 236 | I44: 271 | J44: 295 | K44: 196 | L44: 225 | M44: 245 | N44: 172 | O44: 197 | P44: 215 | Q44: 152 | R44: 175 | S44: 190
A45: 2300 | B45: 362 | C45: 416 | D45: 452 | E45: 274 | F45: 315 | G45: 342 | H45: 245 | I45: 281 | J45: 306 | K45: 205 | L45: 235 | M45: 256 | N45: 179 | O45: 206 | P45: 224 | Q45: 159 | R45: 183 | S45: 198
A46: 2400 | B46: 375 | C46: 431 | D46: 468 | E46: 283 | F46: 326 | G46: 354 | H46: 253 | I46: 291 | J46: 316 | K46: 213 | L46: 245 | M46: 267 | N46: 187 | O46: 215 | P46: 234 | Q46: 166 | R46: 190 | S46: 207
A47: 2500 | B47: 387 | C47: 446 | D47: 484 | E47: 293 | F47: 337 | G47: 366 | H47: 261 | I47: 301 | J47: 327 | K47: 222 | L47: 256 | M47: 278 | N47: 195 | O47: 224 | P47: 244 | Q47: 173 | R47: 198 | S47: 216
A48: 2600 | B48: 400 | C48: 460 | D48: 500 | E48: 302 | F48: 348 | G48: 378 | H48: 270 | I48: 310 | J48: 337 | K48: 231 | L48: 266 | M48: 289 | N48: 203 | O48: 233 | P48: 254 | Q48: 179 | R48: 206 | S48: 224
A49: 2700 | B49: 413 | C49: 475 | D49: 516 | E49: 312 | F49: 358 | G49: 390 | H49: 278 | I49: 320 | J49: 348 | K49: 238 | L49: 274 | M49: 298 | N49: 211 | O49: 242 | P49: 263 | Q49: 186 | R49: 214 | S49: 233
A50: 2800 | B50: 425 | C50: 489 | D50: 532 | E50: 321 | F50: 369 | G50: 401 | H50: 286 | I50: 329 | J50: 358 | K50: 245 | L50: 282 | M50: 307 | N50: 218 | O50: 251 | P50: 273 | Q50: 193 | R50: 222 | S50: 242
A51: 2900 | B51: 438 | C51: 503 | D51: 547 | E51: 330 | F51: 380 | G51: 413 | H51: 295 | I51: 339 | J51: 368 | K51: 252 | L51: 290 | M51: 316 | N51: 225 | O51: 259 | P51: 281 | Q51: 200 | R51: 230 | S51: 250
A52: 3000 | B52: 450 | C52: 518 | D52: 563 | E52: 339 | F52: 390 | G52: 424 | H52: 303 | I52: 348 | J52: 378 | K52: 259 | L52: 298 | M52: 324 | N52: 231 | O52: 266 | P52: 289 | Q52: 207 | R52: 238 | S52: 259
A53: 3100 | B53: 462 | C53: 532 | D53: 578 | E53: 348 | F53: 401 | G53: 435 | H53: 311 | I53: 357 | J53: 389 | K53: 266 | L53: 306 | M53: 333 | N53: 237 | O53: 273 | P53: 297 | Q53: 214 | R53: 246 | S53: 267
A54: 3200 | B54: 475 | C54: 546 | D54: 593 | E54: 357 | F54: 411 | G54: 447 | H54: 319 | I54: 367 | J54: 399 | K54: 273 | L54: 314 | M54: 342 | N54: 243 | O54: 280 | P54: 304 | Q54: 221 | R54: 255 | S54: 277
A55: 3300 | B55: 487 | C55: 560 | D55: 609 | E55: 366 | F55: 421 | G55: 458 | H55: 327 | I55: 376 | J55: 409 | K55: 280 | L55: 322 | M55: 350 | N55: 250 | O55: 287 | P55: 312 | Q55: 227 | R55: 261 | S55: 284
A56: 3400 | B56: 499 | C56: 574 | D56: 624 | E56: 375 | F56: 432 | G56: 469 | H56: 335 | I56: 385 | J56: 419 | K56: 287 | L56: 330 | M56: 359 | N56: 256 | O56: 294 | P56: 319 | Q56: 233 | R56: 267 | S56: 291
A57: 3500 | B57: 511 | C57: 588 | D57: 639 | E57: 384 | F57: 442 | G57: 480 | H57: 343 | I57: 394 | J57: 428 | K57: 294 | L57: 338 | M57: 367 | N57: 262 | O57: 301 | P57: 327 | Q57: 238 | R57: 274 | S57: 297
A58: 3600 | B58: 523 | C58: 601 | D58: 654 | E58: 393 | F58: 452 | G58: 491 | H58: 351 | I58: 403 | J58: 438 | K58: 300 | L58: 345 | M58: 375 | N58: 268 | O58: 308 | P58: 334 | Q58: 243 | R58: 280 | S58: 304
A59: 3700 | B59: 535 | C59: 615 | D59: 669 | E59: 402 | F59: 462 | G59: 502 | H59: 358 | I59: 412 | J59: 448 | K59: 307 | L59: 353 | M59: 384 | N59: 274 | O59: 315 | P59: 342 | Q59: 249 | R59: 286 | S59: 311
A60: 3800 | B60: 547 | C60: 629 | D60: 684 | E60: 410 | F60: 472 | G60: 513 | H60: 366 | I60: 421 | J60: 458 | K60: 314 | L60: 361 | M60: 392 | N60: 279 | O60: 321 | P60: 349 | Q60: 254 | R60: 292 | S60: 318
A61: 3900 | B61: 559 | C61: 642 | D61: 698 | E61: 419 | F61: 482 | G61: 524 | H61: 374 | I61: 430 | J61: 467 | K61: 320 | L61: 368 | M61: 400 | N61: 285 | O61: 328 | P61: 357 | Q61: 260 | R61: 299 | S61: 325
A62: 4000 | B62: 570 | C62: 656 | D62: 713 | E62: 428 | F62: 492 | G62: 535 | H62: 382 | I62: 439 | J62: 477 | K62: 327 | L62: 376 | M62: 409 | N62: 291 | O62: 335 | P62: 364 | Q62: 265 | R62: 305 | S62: 331 | V62: 10400 | W62: 1252 | X62: 1440 | Y62: 1565 | Z62: 13100 | AA62: 1514 | AB62: 1741 | AC62: 1892
A63: 4100 | B63: 582 | C63: 669 | D63: 728 | E63: 436 | F63: 502 | G63: 545 | H63: 389 | I63: 448 | J63: 486 | K63: 333 | L63: 384 | M63: 417 | N63: 297 | O63: 342 | P63: 371 | Q63: 270 | R63: 311 | S63: 338 | V63: 10500 | W63: 1262 | X63: 1451 | Y63: 1577 | Z63: 13200 | AA63: 1523 | AB63: 1752 | AC63: 1904
A64: 4200 | B64: 594 | C64: 683 | D64: 742 | E64: 445 | F64: 512 | G64: 556 | H64: 397 | I64: 456 | J64: 496 | K64: 340 | L64: 391 | M64: 425 | N64: 303 | O64: 348 | P64: 379 | Q64: 276 | R64: 317 | S64: 344 | V64: 10600 | W64: 1272 | X64: 1462 | Y64: 1590 | Z64: 13300 | AA64: 1533 | AB64: 1763 | AC64: 1916
A65: 4300 | B65: 605 | C65: 696 | D65: 757 | E65: 453 | F65: 521 | G65: 567 | H65: 404 | I65: 465 | J65: 505 | K65: 347 | L65: 398 | M65: 433 | N65: 309 | O65: 355 | P65: 386 | Q65: 281 | R65: 323 | S65: 351 | V65: 10700 | W65: 1282 | X65: 1474 | Y65: 1602 | Z65: 13400 | AA65: 1542 | AB65: 1774 | AC65: 1928
A66: 4400 | B66: 617 | C66: 709 | D66: 771 | E66: 462 | F66: 531 | G66: 577 | H66: 412 | I66: 474 | J66: 515 | K66: 353 | L66: 406 | M66: 441 | N66: 314 | O66: 362 | P66: 393 | Q66: 286 | R66: 329 | S66: 358 | V66: 10800 | W66: 1291 | X66: 1485 | Y66: 1614 | Z66: 13500 | AA66: 1552 | AB66: 1784 | AC66: 1940
A67: 4500 | B67: 628 | C67: 723 | D67: 786 | E67: 470 | F67: 541 | G67: 588 | H67: 419 | I67: 482 | J67: 524 | K67: 359 | L67: 413 | M67: 449 | N67: 320 | O67: 368 | P67: 400 | Q67: 291 | R67: 335 | S67: 364
A68: 4600 | B68: 640 | C68: 736 | D68: 800 | E68: 479 | F68: 551 | G68: 599 | H68: 427 | I68: 491 | J68: 534 | K68: 366 | L68: 421 | M68: 457 | N68: 326 | O68: 375 | P68: 407 | Q68: 296 | R68: 341 | S68: 371
A69: 4700 | B69: 651 | C69: 749 | D69: 814 | E69: 487 | F69: 560 | G69: 609 | H69: 434 | I69: 500 | J69: 543 | K69: 372 | L69: 428 | M69: 465 | N69: 332 | O69: 381 | P69: 414 | Q69: 302 | R69: 347 | S69: 377
A70: 4800 | B70: 663 | C70: 762 | D70: 828 | E70: 496 | F70: 570 | G70: 619 | H70: 442 | I70: 508 | J70: 552 | K70: 379 | L70: 435 | M70: 473 | N70: 337 | O70: 388 | P70: 422 | Q70: 307 | R70: 353 | S70: 383
A71: 4900 | B71: 674 | C71: 775 | D71: 843 | E71: 504 | F71: 579 | G71: 630 | H71: 449 | I71: 517 | J71: 561 | K71: 385 | L71: 443 | M71: 481 | N71: 343 | O71: 394 | P71: 429 | Q71: 312 | R71: 359 | S71: 390
A72: 5000 | B72: 685 | C72: 788 | D72: 857 | E72: 512 | F72: 589 | G72: 640 | H72: 457 | I72: 525 | J72: 571 | K72: 391 | L72: 450 | M72: 489 | N72: 348 | O72: 401 | P72: 436 | Q72: 317 | R72: 365 | S72: 396
A73: 5100 | B73: 697 | C73: 801 | D73: 871 | E73: 520 | F73: 598 | G73: 650 | H73: 464 | I73: 533 | J73: 580 | K73: 397 | L73: 457 | M73: 497 | N73: 354 | O73: 407 | P73: 443 | Q73: 322 | R73: 370 | S73: 403
A74: 5200 | B74: 708 | C74: 814 | D74: 885 | E74: 529 | F74: 608 | G74: 661 | H74: 471 | I74: 542 | J74: 589 | K74: 404 | L74: 464 | M74: 505 | N74: 360 | O74: 414 | P74: 450 | Q74: 327 | R74: 376 | S74: 409
A75: 5300 | B75: 719 | C75: 827 | D75: 899 | E75: 537 | F75: 617 | G75: 671 | H75: 478 | I75: 550 | J75: 598 | K75: 410 | L75: 471 | M75: 512 | N75: 365 | O75: 420 | P75: 456 | Q75: 332 | R75: 382 | S75: 415
A76: 5400 | B76: 730 | C76: 840 | D76: 913 | E76: 545 | F76: 627 | G76: 681 | H76: 486 | I76: 558 | J76: 607 | K76: 416 | L76: 479 | M76: 520 | N76: 371 | O76: 426 | P76: 463 | Q76: 337 | R76: 388 | S76: 422
A77: 5500 | B77: 741 | C77: 852 | D77: 927 | E77: 553 | F77: 636 | G77: 691 | H77: 493 | I77: 567 | J77: 616 | K77: 422 | L77: 486 | M77: 528 | N77: 376 | O77: 433 | P77: 470 | Q77: 342 | R77: 394 | S77: 428
A78: 5600 | B78: 752 | C78: 865 | D78: 940 | E78: 561 | F78: 645 | G78: 701 | H78: 500 | I78: 575 | J78: 625 | K78: 428 | L78: 493 | M78: 536 | N78: 382 | O78: 439 | P78: 477 | Q78: 347 | R78: 399 | S78: 434
A79: 5700 | B79: 763 | C79: 878 | D79: 954 | E79: 569 | F79: 655 | G79: 711 | H79: 507 | I79: 583 | J79: 634 | K79: 435 | L79: 500 | M79: 543 | N79: 387 | O79: 445 | P79: 484 | Q79: 352 | R79: 405 | S79: 440
A80: 5800 | B80: 774 | C80: 890 | D80: 968 | E80: 577 | F80: 664 | G80: 721 | H80: 514 | I80: 592 | J80: 643 | K80: 441 | L80: 507 | M80: 551 | N80: 393 | O80: 452 | P80: 491 | Q80: 357 | R80: 411 | S80: 446
A81: 5900 | B81: 785 | C81: 903 | D81: 982 | E81: 585 | F81: 673 | G81: 731 | H81: 521 | I81: 600 | J81: 652 | K81: 447 | L81: 514 | M81: 559 | N81: 398 | O81: 458 | P81: 498 | Q81: 362 | R81: 416 | S81: 453
A82: 6000 | B82: 796 | C82: 916 | D82: 995 | E82: 593 | F82: 682 | G82: 741 | H82: 529 | I82: 608 | J82: 661 | K82: 453 | L82: 521 | M82: 566 | N82: 403 | O82: 464 | P82: 504 | Q82: 367 | R82: 422 | S82: 459
A83: 6100 | B83: 807 | C83: 928 | D83: 1009 | E83: 601 | F83: 691 | G83: 751 | H83: 536 | I83: 616 | J83: 670 | K83: 459 | L83: 528 | M83: 574 | N83: 409 | O83: 470 | P83: 511 | Q83: 372 | R83: 428 | S83: 465
A84: 6200 | B84: 818 | C84: 941 | D84: 1023 | E84: 609 | F84: 700 | G84: 761 | H84: 543 | I84: 624 | J84: 678 | K84: 465 | L84: 535 | M84: 581 | N84: 414 | O84: 476 | P84: 518 | Q84: 377 | R84: 433 | S84: 471
A85: 6300 | B85: 829 | C85: 953 | D85: 1036 | E85: 617 | F85: 710 | G85: 771 | H85: 550 | I85: 632 | J85: 687 | K85: 471 | L85: 542 | M85: 589 | N85: 420 | O85: 483 | P85: 525 | Q85: 382 | R85: 439 | S85: 477
A86: 6400 | B86: 840 | C86: 966 | D86: 1050 | E86: 625 | F86: 719 | G86: 781 | H86: 557 | I86: 640 | J86: 696 | K86: 477 | L86: 549 | M86: 596 | N86: 425 | O86: 489 | P86: 531 | Q86: 387 | R86: 445 | S86: 483
A87: 6500 | B87: 850 | C87: 978 | D87: 1063 | E87: 633 | F87: 728 | G87: 791 | H87: 564 | I87: 648 | J87: 705 | K87: 483 | L87: 555 | M87: 604 | N87: 430 | O87: 495 | P87: 538 | Q87: 391 | R87: 450 | S87: 489
A88: 6600 | B88: 861 | C88: 990 | D88: 1076 | E88: 641 | F88: 737 | G88: 801 | H88: 571 | I88: 656 | J88: 713 | K88: 489 | L88: 562 | M88: 611 | N88: 436 | O88: 501 | P88: 545 | Q88: 396 | R88: 456 | S88: 495
A89: 6700 | B89: 872 | C89: 1003 | D89: 1090 | E89: 648 | F89: 746 | G89: 810 | H89: 578 | I89: 664 | J89: 722 | K89: 495 | L89: 569 | M89: 619 | N89: 441 | O89: 507 | P89: 551 | Q89: 401 | R89: 461 | S89: 501 | V89: 10900 | W89: 1301 | X89: 1496 | Y89: 1627 | Z89: 13600 | AA89: 1561 | AB89: 1795 | AC89: 1951
A90: 6800 | B90: 883 | C90: 1015 | D90: 1103 | E90: 656 | F90: 755 | G90: 820 | H90: 585 | I90: 672 | J90: 731 | K90: 501 | L90: 576 | M90: 626 | N90: 446 | O90: 513 | P90: 558 | Q90: 406 | R90: 467 | S90: 507 | V90: 11000 | W90: 1311 | X90: 1508 | Y90: 1639 | Z90: 13700 | AA90: 1571 | AB90: 1806 | AC90: 1963
A91: 6900 | B91: 893 | C91: 1027 | D91: 1117 | E91: 664 | F91: 763 | G91: 830 | H91: 591 | I91: 680 | J91: 739 | K91: 507 | L91: 583 | M91: 633 | N91: 451 | O91: 519 | P91: 564 | Q91: 411 | R91: 472 | S91: 513 | V91: 11100 | W91: 1321 | X91: 1519 | Y91: 1651 | Z91: 13800 | AA91: 1580 | AB91: 1817 | AC91: 1975
A92: 7000 | B92: 904 | C92: 1039 | D92: 1130 | E92: 672 | F92: 772 | G92: 840 | H92: 598 | I92: 688 | J92: 748 | K92: 513 | L92: 590 | M92: 641 | N92: 457 | O92: 525 | P92: 571 | Q92: 415 | R92: 478 | S92: 519 | V92: 11200 | W92: 1331 | X92: 1530 | Y92: 1663 | Z92: 13900 | AA92: 1589 | AB92: 1828 | AC92: 1987
A93: 7100 | B93: 915 | C93: 1052 | D93: 1143 | E93: 679 | F93: 781 | G93: 849 | H93: 605 | I93: 696 | J93: 756 | K93: 519 | L93: 596 | M93: 648 | N93: 462 | O93: 531 | P93: 577 | Q93: 420 | R93: 483 | S93: 525 | V93: 11300 | W93: 1340 | X93: 1541 | Y93: 1675 | Z93: 14000 | AA93: 1599 | AB93: 1839 | AC93: 1998
A94: 7200 | B94: 925 | C94: 1064 | D94: 1156 | E94: 687 | F94: 790 | G94: 859 | H94: 612 | I94: 704 | J94: 765 | K94: 524 | L94: 603 | M94: 656 | N94: 467 | O94: 537 | P94: 584 | Q94: 425 | R94: 489 | S94: 531 | V94: 11400 | W94: 1350 | X94: 1553 | Y94: 1688 | Z94: 14100 | AA94: 1608 | AB94: 1849 | AC94: 2010
A95: 7300 | B95: 936 | C95: 1076 | D95: 1170 | E95: 695 | F95: 799 | G95: 868 | H95: 619 | I95: 712 | J95: 774 | K95: 530 | L95: 610 | M95: 663 | N95: 472 | O95: 543 | P95: 591 | Q95: 430 | R95: 494 | S95: 537 | V95: 11500 | W95: 1360 | X95: 1564 | Y95: 1700 | Z95: 14200 | AA95: 1618 | AB95: 1860 | AC95: 2022
A96: 7400 | B96: 946 | C96: 1088 | D96: 1183 | E96: 702 | F96: 808 | G96: 878 | H96: 626 | I96: 719 | J96: 782 | K96: 536 | L96: 617 | M96: 670 | N96: 478 | O96: 549 | P96: 597 | Q96: 434 | R96: 500 | S96: 543 | V96: 11600 | W96: 1370 | X96: 1575 | Y96: 1712 | Z96: 14300 | AA96: 1627 | AB96: 1871 | AC96: 2034
A97: 7500 | B97: 957 | C97: 1100 | D97: 1196 | E97: 710 | F97: 817 | G97: 888 | H97: 632 | I97: 727 | J97: 791 | K97: 542 | L97: 623 | M97: 677 | N97: 483 | O97: 555 | P97: 603 | Q97: 439 | R97: 505 | S97: 549 | V97: 11700 | W97: 1379 | X97: 1586 | Y97: 1724 | Z97: 14400 | AA97: 1636 | AB97: 1882 | AC97: 2045
A98: 7600 | B98: 967 | C98: 1112 | D98: 1209 | E98: 718 | F98: 825 | G98: 897 | H98: 639 | I98: 735 | J98: 799 | K98: 548 | L98: 630 | M98: 685 | N98: 488 | O98: 561 | P98: 610 | Q98: 444 | R98: 510 | S98: 555 | V98: 11800 | W98: 1389 | X98: 1597 | Y98: 1736 | Z98: 14500 | AA98: 1646 | AB98: 1892 | AC98: 2057
A99: 7700 | B99: 978 | C99: 1124 | D99: 1222 | E99: 725 | F99: 834 | G99: 907 | H99: 646 | I99: 743 | J99: 807 | K99: 554 | L99: 637 | M99: 692 | N99: 493 | O99: 567 | P99: 616 | Q99: 449 | R99: 516 | S99: 561
A100: 7800 | B100: 988 | C100: 1136 | D100: 1235 | E100: 733 | F100: 843 | G100: 916 | H100: 653 | I100: 751 | J100: 816 | K100: 559 | L100: 643 | M100: 699 | N100: 498 | O100: 573 | P100: 623 | Q100: 453 | R100: 521 | S100: 567
A101: 7900 | B101: 998 | C101: 1148 | D101: 1248 | E101: 740 | F101: 852 | G101: 926 | H101: 659 | I101: 758 | J101: 824 | K101: 565 | L101: 650 | M101: 706 | N101: 503 | O101: 579 | P101: 629 | Q101: 458 | R101: 527 | S101: 572
A102: 8000 | B102: 1009 | C102: 1160 | D102: 1261 | E102: 748 | F102: 860 | G102: 935 | H102: 666 | I102: 766 | J102: 833 | K102: 571 | L102: 656 | M102: 713 | N102: 508 | O102: 585 | P102: 636 | Q102: 463 | R102: 532 | S102: 578
A103: 8100 | B103: 1019 | C103: 1172 | D103: 1274 | E103: 756 | F103: 869 | G103: 944 | H103: 673 | I103: 774 | J103: 841 | K103: 577 | L103: 663 | M103: 721 | N103: 514 | O103: 591 | P103: 642 | Q103: 467 | R103: 537 | S103: 584
A104: 8200 | B104: 1030 | C104: 1184 | D104: 1287 | E104: 763 | F104: 877 | G104: 954 | H104: 679 | I104: 781 | J104: 849 | K104: 582 | L104: 670 | M104: 728 | N104: 519 | O104: 596 | P104: 648 | Q104: 472 | R104: 543 | S104: 590
A105: 8300 | B105: 1040 | C105: 1196 | D105: 1300 | E105: 771 | F105: 886 | G105: 963 | H105: 686 | I105: 789 | J105: 858 | K105: 588 | L105: 676 | M105: 735 | N105: 524 | O105: 602 | P105: 655 | Q105: 476 | R105: 548 | S105: 596
A106: 8400 | B106: 1050 | C106: 1208 | D106: 1313 | E106: 778 | F106: 895 | G106: 972 | H106: 693 | I106: 797 | J106: 866 | K106: 594 | L106: 683 | M106: 742 | N106: 529 | O106: 608 | P106: 661 | Q106: 481 | R106: 553 | S106: 601
A107: 8500 | B107: 1060 | C107: 1220 | D107: 1326 | E107: 785 | F107: 903 | G107: 982 | H107: 699 | I107: 804 | J107: 874 | K107: 599 | L107: 689 | M107: 749 | N107: 534 | O107: 614 | P107: 667 | Q107: 486 | R107: 559 | S107: 607
A108: 8600 | B108: 1071 | C108: 1231 | D108: 1338 | E108: 793 | F108: 912 | G108: 991 | H108: 706 | I108: 812 | J108: 882 | K108: 605 | L108: 696 | M108: 756 | N108: 539 | O108: 620 | P108: 674 | Q108: 490 | R108: 564 | S108: 613
A109: 8700 | B109: 1081 | C109: 1243 | D109: 1351 | E109: 800 | F109: 920 | G109: 1000 | H109: 713 | I109: 819 | J109: 891 | K109: 611 | L109: 702 | M109: 763 | N109: 544 | O109: 626 | P109: 680 | Q109: 495 | R109: 569 | S109: 619
A110: 8800 | B110: 1091 | C110: 1255 | D110: 1364 | E110: 808 | F110: 929 | G110: 1010 | H110: 719 | I110: 827 | J110: 899 | K110: 616 | L110: 709 | M110: 770 | N110: 549 | O110: 631 | P110: 686 | Q110: 499 | R110: 574 | S110: 624
A111: 8900 | B111: 1101 | C111: 1267 | D111: 1377 | E111: 815 | F111: 937 | G111: 1019 | H111: 726 | I111: 835 | J111: 907 | K111: 622 | L111: 715 | M111: 777 | N111: 554 | O111: 637 | P111: 692 | Q111: 504 | R111: 580 | S111: 630
A112: 9000 | B112: 1112 | C112: 1278 | D112: 1389 | E112: 822 | F112: 946 | G112: 1028 | H112: 732 | I112: 842 | J112: 915 | K112: 627 | L112: 722 | M112: 784 | N112: 559 | O112: 643 | P112: 699 | Q112: 509 | R112: 585 | S112: 636
A113: 9100 | B113: 1122 | C113: 1290 | D113: 1402 | E113: 830 | F113: 954 | G113: 1037 | H113: 739 | I113: 850 | J113: 924 | K113: 633 | L113: 728 | M113: 791 | N113: 564 | O113: 649 | P113: 705 | Q113: 513 | R113: 590 | S113: 641
A114: 9200 | B114: 1132 | C114: 1302 | D114: 1415 | E114: 837 | F114: 963 | G114: 1046 | H114: 745 | I114: 857 | J114: 932 | K114: 639 | L114: 734 | M114: 798 | N114: 569 | O114: 654 | P114: 711 | Q114: 518 | R114: 595 | S114: 647
A115: 9300 | B115: 1142 | C115: 1313 | D115: 1427 | E115: 845 | F115: 971 | G115: 1056 | H115: 752 | I115: 865 | J115: 940 | K115: 644 | L115: 741 | M115: 805 | N115: 574 | O115: 660 | P115: 717 | Q115: 522 | R115: 600 | S115: 653
A116: 9400 | B116: 1152 | C116: 1325 | D116: 1440 | E116: 852 | F116: 980 | G116: 1065 | H116: 758 | I116: 872 | J116: 948 | K116: 650 | L116: 747 | M116: 812 | N116: 579 | O116: 666 | P116: 724 | Q116: 527 | R116: 606 | S116: 658
A117: 9500 | B117: 1162 | C117: 1336 | D117: 1453 | E117: 859 | F117: 988 | G117: 1074 | H117: 765 | I117: 880 | J117: 956 | K117: 655 | L117: 754 | M117: 819 | N117: 584 | O117: 671 | P117: 730 | Q117: 531 | R117: 611 | S117: 664
A118: 9600 | B118: 1172 | C118: 1348 | D118: 1465 | E118: 866 | F118: 996 | G118: 1083 | H118: 771 | I118: 887 | J118: 964 | K118: 661 | L118: 760 | M118: 826 | N118: 589 | O118: 677 | P118: 736 | Q118: 536 | R118: 616 | S118: 670
A119: 9700 | B119: 1182 | C119: 1360 | D119: 1478 | E119: 874 | F119: 1005 | G119: 1092 | H119: 778 | I119: 894 | J119: 972 | K119: 666 | L119: 766 | M119: 833 | N119: 594 | O119: 683 | P119: 742 | Q119: 540 | R119: 621 | S119: 675
A120: 9800 | B120: 1192 | C120: 1371 | D120: 1490 | E120: 881 | F120: 1013 | G120: 1101 | H120: 784 | I120: 902 | J120: 980 | K120: 672 | L120: 773 | M120: 840 | N120: 599 | O120: 688 | P120: 748 | Q120: 545 | R120: 626 | S120: 681
A121: 9900 | B121: 1202 | C121: 1383 | D121: 1503 | E121: 888 | F121: 1021 | G121: 1110 | H121: 791 | I121: 909 | J121: 988 | K121: 677 | L121: 779 | M121: 847 | N121: 604 | O121: 694 | P121: 754 | Q121: 549 | R121: 631 | S121: 686
A122: 10000 | B122: 1212 | C122: 1394 | D122: 1515 | E122: 895 | F122: 1030 | G122: 1119 | H122: 797 | I122: 917 | J122: 996 | K122: 683 | L122: 785 | M122: 854 | N122: 608 | O122: 700 | P122: 761 | Q122: 553 | R122: 637 | S122: 692
A123: 10100 | B123: 1222 | C123: 1405 | D123: 1528 | E123: 903 | F123: 1038 | G123: 1128 | H123: 803 | I123: 924 | J123: 1004 | K123: 688 | L123: 792 | M123: 861 | N123: 613 | O123: 705 | P123: 767 | Q123: 558 | R123: 642 | S123: 697
A124: 10200 | B124: 1232 | C124: 1417 | D124: 1540 | E124: 910 | F124: 1046 | G124: 1137 | H124: 810 | I124: 931 | J124: 1012 | K124: 694 | L124: 798 | M124: 867 | N124: 618 | O124: 711 | P124: 773 | Q124: 562 | R124: 647 | S124: 703
A125: 10300 | B125: 1242 | C125: 1428 | D125: 1553 | E125: 917 | F125: 1055 | G125: 1146 | H125: 816 | I125: 939 | J125: 1020 | K125: 699 | L125: 804 | M125: 874 | N125: 623 | O125: 716 | P125: 779 | Q125: 567 | R125: 652 | S125: 708
A126: 10400 | B126: 1252 | C126: 1440 | D126: 1565 | E126: 924 | F126: 1063 | G126: 1155 | H126: 823 | I126: 946 | J126: 1028 | K126: 705 | L126: 811 | M126: 881 | N126: 628 | O126: 722 | P126: 785 | Q126: 571 | R126: 657 | S126: 714
A127: 10500 | B127: 1262 | C127: 1451 | D127: 1577 | E127: 931 | F127: 1071 | G127: 1164 | H127: 829 | I127: 953 | J127: 1036 | K127: 710 | L127: 817 | M127: 888 | N127: 633 | O127: 728 | P127: 791 | Q127: 576 | R127: 662 | S127: 720
A128: 10600 | B128: 1272 | C128: 1462 | D128: 1590 | E128: 938 | F128: 1079 | G128: 1173 | H128: 835 | I128: 961 | J128: 1044 | K128: 716 | L128: 823 | M128: 895 | N128: 638 | O128: 733 | P128: 797 | Q128: 580 | R128: 667 | S128: 725
A129: 10700 | B129: 1282 | C129: 1474 | D129: 1602 | E129: 946 | F129: 1087 | G129: 1182 | H129: 842 | I129: 968 | J129: 1052 | K129: 721 | L129: 829 | M129: 901 | N129: 642 | O129: 739 | P129: 803 | Q129: 584 | R129: 672 | S129: 731
A130: 10800 | B130: 1291 | C130: 1485 | D130: 1614 | E130: 953 | F130: 1096 | G130: 1191 | H130: 848 | I130: 975 | J130: 1060 | K130: 727 | L130: 836 | M130: 908 | N130: 647 | O130: 744 | P130: 809 | Q130: 589 | R130: 677 | S130: 736
A131: 10900 | B131: 1301 | C131: 1496 | D131: 1627 | E131: 960 | F131: 1104 | G131: 1200 | H131: 854 | I131: 982 | J131: 1068 | K131: 732 | L131: 842 | M131: 915 | N131: 652 | O131: 750 | P131: 815 | Q131: 593 | R131: 682 | S131: 741
A132: 11000 | B132: 1311 | C132: 1508 | D132: 1639 | E132: 967 | F132: 1112 | G132: 1209 | H132: 860 | I132: 990 | J132: 1076 | K132: 737 | L132: 848 | M132: 922 | N132: 657 | O132: 755 | P132: 821 | Q132: 598 | R132: 687 | S132: 747
A133: 11100 | B133: 1321 | C133: 1519 | D133: 1651 | E133: 974 | F133: 1120 | G133: 1217 | H133: 867 | I133: 997 | J133: 1083 | K133: 743 | L133: 854 | M133: 928 | N133: 662 | O133: 761 | P133: 827 | Q133: 602 | R133: 692 | S133: 752
A134: 11200 | B134: 1331 | C134: 1530 | D134: 1663 | E134: 981 | F134: 1128 | G134: 1226 | H134: 873 | I134: 1004 | J134: 1091 | K134: 748 | L134: 860 | M134: 935 | N134: 666 | O134: 766 | P134: 833 | Q134: 606 | R134: 697 | S134: 758
A135: 11300 | B135: 1340 | C135: 1541 | D135: 1675 | E135: 988 | F135: 1136 | G135: 1235 | H135: 879 | I135: 1011 | J135: 1099 | K135: 753 | L135: 866 | M135: 942 | N135: 671 | O135: 772 | P135: 839 | Q135: 611 | R135: 702 | S135: 763
A136: 11400 | B136: 1350 | C136: 1553 | D136: 1688 | E136: 995 | F136: 1144 | G136: 1244 | H136: 886 | I136: 1018 | J136: 1107 | K136: 759 | L136: 873 | M136: 949 | N136: 676 | O136: 777 | P136: 845 | Q136: 615 | R136: 707 | S136: 769
A137: 11500 | B137: 1360 | C137: 1564 | D137: 1700 | E137: 1002 | F137: 1152 | G137: 1253 | H137: 892 | I137: 1026 | J137: 1115 | K137: 764 | L137: 879 | M137: 955 | N137: 681 | O137: 783 | P137: 851 | Q137: 619 | R137: 712 | S137: 774
A138: 11600 | B138: 1370 | C138: 1575 | D138: 1712 | E138: 1009 | F138: 1161 | G138: 1261 | H138: 898 | I138: 1033 | J138: 1123 | K138: 770 | L138: 885 | M138: 962 | N138: 686 | O138: 788 | P138: 857 | Q138: 624 | R138: 717 | S138: 780
A139: 11700 | B139: 1379 | C139: 1586 | D139: 1724 | E139: 1016 | F139: 1169 | G139: 1270 | H139: 904 | I139: 1040 | J139: 1130 | K139: 775 | L139: 891 | M139: 969 | N139: 690 | O139: 794 | P139: 863 | Q139: 628 | R139: 722 | S139: 785
A140: 11800 | B140: 1389 | C140: 1597 | D140: 1736 | E140: 1023 | F140: 1177 | G140: 1279 | H140: 910 | I140: 1047 | J140: 1138 | K140: 780 | L140: 897 | M140: 975 | N140: 695 | O140: 799 | P140: 869 | Q140: 632 | R140: 727 | S140: 790
A141: 11900 | B141: 1399 | C141: 1608 | D141: 1748 | E141: 1030 | F141: 1185 | G141: 1288 | H141: 917 | I141: 1054 | J141: 1146 | K141: 785 | L141: 903 | M141: 982 | N141: 700 | O141: 805 | P141: 875 | Q141: 637 | R141: 732 | S141: 796
A142: 12000 | B142: 1408 | C142: 1620 | D142: 1760 | E142: 1037 | F142: 1193 | G142: 1296 | H142: 923 | I142: 1061 | J142: 1154 | K142: 791 | L142: 909 | M142: 988 | N142: 704 | O142: 810 | P142: 881 | Q142: 641 | R142: 737 | S142: 801
A143: 12100 | B143: 1418 | C143: 1631 | D143: 1772 | E143: 1044 | F143: 1201 | G143: 1305 | H143: 929 | I143: 1068 | J143: 1161 | K143: 796 | L143: 915 | M143: 995 | N143: 709 | O143: 816 | P143: 886 | Q143: 645 | R143: 742 | S143: 806
A144: 12200 | B144: 1428 | C144: 1642 | D144: 1785 | E144: 1051 | F144: 1209 | G144: 1314 | H144: 935 | I144: 1075 | J144: 1169 | K144: 801 | L144: 922 | M144: 1002 | N144: 714 | O144: 821 | P144: 892 | Q144: 649 | R144: 747 | S144: 812
A145: 12300 | B145: 1437 | C145: 1653 | D145: 1797 | E145: 1058 | F145: 1217 | G145: 1323 | H145: 941 | I145: 1083 | J145: 1177 | K145: 807 | L145: 928 | M145: 1008 | N145: 719 | O145: 826 | P145: 898 | Q145: 654 | R145: 752 | S145: 817
A146: 12400 | B146: 1447 | C146: 1664 | D146: 1809 | E146: 1065 | F146: 1225 | G146: 1331 | H146: 947 | I146: 1090 | J146: 1184 | K146: 812 | L146: 934 | M146: 1015 | N146: 723 | O146: 832 | P146: 904 | Q146: 658 | R146: 757 | S146: 822
A147: 12500 | B147: 1456 | C147: 1675 | D147: 1821 | E147: 1072 | F147: 1233 | G147: 1340 | H147: 954 | I147: 1097 | J147: 1192 | K147: 817 | L147: 940 | M147: 1021 | N147: 728 | O147: 837 | P147: 910 | Q147: 662 | R147: 762 | S147: 828
A148: 12600 | B148: 1466 | C148: 1686 | D148: 1833 | E148: 1079 | F148: 1241 | G148: 1348 | H148: 960 | I148: 1104 | J148: 1200 | K148: 822 | L148: 946 | M148: 1028 | N148: 733 | O148: 843 | P148: 916 | Q148: 666 | R148: 766 | S148: 833
A149: 12700 | B149: 1476 | C149: 1697 | D149: 1844 | E149: 1086 | F149: 1248 | G149: 1357 | H149: 966 | I149: 1111 | J149: 1207 | K149: 828 | L149: 952 | M149: 1035 | N149: 737 | O149: 848 | P149: 922 | Q149: 671 | R149: 771 | S149: 838
A150: 12800 | B150: 1485 | C150: 1708 | D150: 1856 | E150: 1093 | F150: 1256 | G150: 1366 | H150: 972 | I150: 1118 | J150: 1215 | K150: 833 | L150: 958 | M150: 1041 | N150: 742 | O150: 853 | P150: 927 | Q150: 675 | R150: 776 | S150: 844
A151: 12900 | B151: 1495 | C151: 1719 | D151: 1868 | E151: 1099 | F151: 1264 | G151: 1374 | H151: 978 | I151: 1125 | J151: 1223 | K151: 838 | L151: 964 | M151: 1048 | N151: 747 | O151: 859 | P151: 933 | Q151: 679 | R151: 781 | S151: 849
A152: 13000 | B152: 1504 | C152: 1730 | D152: 1880 | E152: 1106 | F152: 1272 | G152: 1383 | H152: 984 | I152: 1132 | J152: 1230 | K152: 843 | L152: 970 | M152: 1054 | N152: 751 | O152: 864 | P152: 939 | Q152: 683 | R152: 786 | S152: 854
A153: 13100 | B153: 1514 | C153: 1741 | D153: 1892 | E153: 1113 | F153: 1280 | G153: 1391 | H153: 990 | I153: 1139 | J153: 1238 | K153: 849 | L153: 976 | M153: 1061 | N153: 756 | O153: 869 | P153: 945 | Q153: 688 | R153: 791 | S153: 860
A154: 13200 | B154: 1523 | C154: 1752 | D154: 1904 | E154: 1120 | F154: 1288 | G154: 1400 | H154: 996 | I154: 1146 | J154: 1245 | K154: 854 | L154: 982 | M154: 1067 | N154: 761 | O154: 875 | P154: 951 | Q154: 692 | R154: 796 | S154: 865
A155: 13300 | B155: 1533 | C155: 1763 | D155: 1916 | E155: 1127 | F155: 1296 | G155: 1409 | H155: 1002 | I155: 1153 | J155: 1253 | K155: 859 | L155: 988 | M155: 1074 | N155: 765 | O155: 880 | P155: 956 | Q155: 696 | R155: 801 | S155: 870
A156: 13400 | B156: 1542 | C156: 1774 | D156: 1928 | E156: 1134 | F156: 1304 | G156: 1417 | H156: 1008 | I156: 1160 | J156: 1261 | K156: 864 | L156: 994 | M156: 1080 | N156: 770 | O156: 885 | P156: 962 | Q156: 700 | R156: 805 | S156: 875
A157: 13500 | B157: 1552 | C157: 1784 | D157: 1940 | E157: 1140 | F157: 1312 | G157: 1426 | H157: 1014 | I157: 1167 | J157: 1268 | K157: 869 | L157: 1000 | M157: 1087 | N157: 774 | O157: 891 | P157: 968 | Q157: 705 | R157: 810 | S157: 881
A158: 13600 | B158: 1561 | C158: 1795 | D158: 1951 | E158: 1147 | F158: 1319 | G158: 1434 | H158: 1021 | I158: 1174 | J158: 1276 | K158: 874 | L158: 1006 | M158: 1093 | N158: 779 | O158: 896 | P158: 974 | Q158: 709 | R158: 815 | S158: 886
A159: 13700 | B159: 1571 | C159: 1806 | D159: 1963 | E159: 1154 | F159: 1327 | G159: 1443 | H159: 1027 | I159: 1181 | J159: 1283 | K159: 880 | L159: 1012 | M159: 1100 | N159: 784 | O159: 901 | P159: 980 | Q159: 713 | R159: 820 | S159: 891
A160: 13800 | B160: 1580 | C160: 1817 | D160: 1975 | E160: 1161 | F160: 1335 | G160: 1451 | H160: 1033 | I160: 1187 | J160: 1291 | K160: 885 | L160: 1018 | M160: 1106 | N160: 788 | O160: 906 | P160: 985 | Q160: 717 | R160: 825 | S160: 896
A161: 13900 | B161: 1589 | C161: 1828 | D161: 1987 | E161: 1168 | F161: 1343 | G161: 1460 | H161: 1039 | I161: 1194 | J161: 1298 | K161: 890 | L161: 1023 | M161: 1112 | N161: 793 | O161: 912 | P161: 991 | Q161: 721 | R161: 829 | S161: 902
A162: 14000 | B162: 1599 | C162: 1839 | D162: 1998 | E162: 1174 | F162: 1351 | G162: 1468 | H162: 1045 | I162: 1201 | J162: 1306 | K162: 895 | L162: 1029 | M162: 1119 | N162: 797 | O162: 917 | P162: 997 | Q162: 725 | R162: 834 | S162: 907
A163: 14100 | B163: 1608 | C163: 1849 | D163: 2010 | E163: 1181 | F163: 1358 | G163: 1476 | H163: 1051 | I163: 1208 | J163: 1313 | K163: 900 | L163: 1035 | M163: 1125 | N163: 802 | O163: 922 | P163: 1002 | Q163: 730 | R163: 839 | S163: 912
A164: 14200 | B164: 1618 | C164: 1860 | D164: 2022 | E164: 1188 | F164: 1366 | G164: 1485 | H164: 1057 | I164: 1215 | J164: 1321 | K164: 905 | L164: 1041 | M164: 1132 | N164: 807 | O164: 928 | P164: 1008 | Q164: 734 | R164: 844 | S164: 917
A165: 14300 | B165: 1627 | C165: 1871 | D165: 2034 | E165: 1195 | F165: 1374 | G165: 1493 | H165: 1063 | I165: 1222 | J165: 1328 | K165: 910 | L165: 1047 | M165: 1138 | N165: 811 | O165: 933 | P165: 1014 | Q165: 738 | R165: 849 | S165: 922
A166: 14400 | B166: 1636 | C166: 1882 | D166: 2045 | E166: 1201 | F166: 1382 | G166: 1502 | H166: 1069 | I166: 1229 | J166: 1336 | K166: 916 | L166: 1053 | M166: 1145 | N166: 816 | O166: 938 | P166: 1020 | Q166: 742 | R166: 853 | S166: 928
A167: 14500 | B167: 1646 | C167: 1892 | D167: 2057 | E167: 1208 | F167: 1389 | G167: 1510 | H167: 1074 | I167: 1236 | J167: 1343 | K167: 921 | L167: 1059 | M167: 1151 | N167: 820 | O167: 943 | P167: 1025 | Q167: 746 | R167: 858 | S167: 933
A168: 14600 | B168: 1655 | C168: 1903 | D168: 2069 | E168: 1215 | F168: 1397 | G168: 1518 | H168: 1080 | I168: 1242 | J168: 1351 | K168: 926 | L168: 1065 | M168: 1157 | N168: 825 | O168: 948 | P168: 1031 | Q168: 750 | R168: 863 | S168: 938
A169: 14700 | B169: 1664 | C169: 1914 | D169: 2080 | E169: 1221 | F169: 1405 | G169: 1527 | H169: 1086 | I169: 1249 | J169: 1358 | K169: 931 | L169: 1071 | M169: 1164 | N169: 829 | O169: 954 | P169: 1037 | Q169: 754 | R169: 868 | S169: 943
A170: 14800 | B170: 1674 | C170: 1925 | D170: 2092 | E170: 1228 | F170: 1412 | G170: 1535 | H170: 1092 | I170: 1256 | J170: 1365 | K170: 936 | L170: 1076 | M170: 1170 | N170: 834 | O170: 959 | P170: 1042 | Q170: 759 | R170: 872 | S170: 948
A171: 14900 | B171: 1683 | C171: 1935 | D171: 2104 | E171: 1235 | F171: 1420 | G171: 1544 | H171: 1098 | I171: 1263 | J171: 1373 | K171: 941 | L171: 1082 | M171: 1176 | N171: 838 | O171: 964 | P171: 1048 | Q171: 763 | R171: 877 | S171: 953
A172: 15000 | B172: 1692 | C172: 1946 | D172: 2115 | E172: 1242 | F172: 1428 | G172: 1552 | H172: 1104 | I172: 1270 | J172: 1380 | K172: 946 | L172: 1088 | M172: 1183 | N172: 843 | O172: 969 | P172: 1054 | Q172: 767 | R172: 882 | S172: 958
A173: 15100 | B173: 1701 | C173: 1957 | D173: 2127 | E173: 1248 | F173: 1435 | G173: 1560 | H173: 1110 | I173: 1277 | J173: 1388 | K173: 951 | L173: 1094 | M173: 1189 | N173: 847 | O173: 974 | P173: 1059 | Q173: 771 | R173: 887 | S173: 964
A174: 15200 | B174: 1711 | C174: 1967 | D174: 2138 | E174: 1255 | F174: 1443 | G174: 1569 | H174: 1116 | I174: 1283 | J174: 1395 | K174: 956 | L174: 1100 | M174: 1195 | N174: 852 | O174: 980 | P174: 1065 | Q174: 775 | R174: 891 | S174: 969
A175: 15300 | B175: 1720 | C175: 1978 | D175: 2150 | E175: 1262 | F175: 1451 | G175: 1577 | H175: 1122 | I175: 1290 | J175: 1402 | K175: 961 | L175: 1106 | M175: 1202 | N175: 856 | O175: 985 | P175: 1071 | Q175: 779 | R175: 896 | S175: 974
A176: 15400 | B176: 1729 | C176: 1989 | D176: 2161 | E176: 1268 | F176: 1458 | G176: 1585 | H176: 1128 | I176: 1297 | J176: 1410 | K176: 966 | L176: 1111 | M176: 1208 | N176: 861 | O176: 990 | P176: 1076 | Q176: 783 | R176: 901 | S176: 979
A177: 15500 | B177: 1738 | C177: 1999 | D177: 2173 | E177: 1275 | F177: 1466 | G177: 1593 | H177: 1134 | I177: 1304 | J177: 1417 | K177: 971 | L177: 1117 | M177: 1214 | N177: 865 | O177: 995 | P177: 1082 | Q177: 787 | R177: 905 | S177: 984

Sheet Interstate Pay (hidden)
F2: State | G2: Weekly Wage | H2: Kansas Weekly Wage | I2: h/g | J2: agi | K2: State | L2: Adjusted AGI
F4: Alaska | I4: =H4/G4 ->  | J4: =IF(Worksheet!F45="m",Worksheet!J124,Worksheet!H124) -> 0 | L4: 0 | M4: =J4-L4 -> 0 | N4: =-M4 -> 0
F5: Alabama | G5: 784 | I5: =G21/G5 -> 0.9706632653 | J5: =IF(Worksheet!I86="F",Worksheet!J124,Worksheet!H124) -> 0 | K5: =IF(Worksheet!F89='Interstate Pay'!F5,L5,0) -> 0 | L5: =I5*J5 -> 0 | M5: =J5-L5 -> 0 | N5: =-M5 -> 0
F6: Alaska | G6: 961 | I6: =G21/G6 -> 0.7918834547 | J6: =IF(Worksheet!I86="F",Worksheet!J124,Worksheet!H124) -> 0 | K6: =IF(Worksheet!F89='Interstate Pay'!F6,L6,0) -> 0 | L6: =I6*J7 -> 0 | M6: =J7-L6 -> 0 | N6: 0
F7: Arizona | G7: 846 | I7: =G21/G7 -> 0.8995271868 | J7: =IF(Worksheet!I86="F",Worksheet!J124,Worksheet!H124) -> 0 | K7: =IF(Worksheet!F89='Interstate Pay'!F7,L7,0) -> 0 | L7: 0 | M7: 0 | N7: 0
F8: Arkansas | G8: 708 | I8: =G21/G8 -> 1.074858757 | J8: =IF(Worksheet!I86="F",Worksheet!J124,Worksheet!H124) -> 0 | K8: =IF(Worksheet!F89='Interstate Pay'!F8,L8,0) -> 0 | L8: 0 | M8: 0 | N8: 0
F9: California | G9: 1036 | I9: =G21/G9 -> 0.7345559846 | J9: =IF(Worksheet!I86="F",Worksheet!J124,Worksheet!H124) -> 0 | K9: =IF(Worksheet!F89='Interstate Pay'!F9,L9,0) -> 0 | L9: 0 | M9: 0 | N9: 0
F10: Colorado | G10: 936 | I10: =G21/G10 -> 0.813034188 | J10: =IF(Worksheet!I86="F",Worksheet!J124,Worksheet!H124) -> 0 | K10: =IF(Worksheet!F89='Interstate Pay'!F10,L10,0) -> 0 | L10: 0 | M10: 0 | N10: 0
F11: Connecticut | G11: 1087 | I11: =G21/G11 -> 0.7000919963 | J11: =IF(Worksheet!I86="F",Worksheet!J124,Worksheet!H124) -> 0 | K11: =IF(Worksheet!F89='Interstate Pay'!F11,L11,0) -> 0 | L11: 0 | M11: 0 | N11: 0
F12: Delaware | G12: 925 | I12: =G21/G12 -> 0.8227027027 | J12: =IF(Worksheet!I86="F",Worksheet!J124,Worksheet!H124) -> 0 | K12: =IF(Worksheet!F89='Interstate Pay'!F12,L12,0) -> 0 | L12: 0 | M12: 0 | N12: 0
F13: District of Columbia | G13: 1514 | I13: =G21/G13 -> 0.5026420079 | J13: =IF(Worksheet!I86="F",Worksheet!J124,Worksheet!H124) -> 0 | K13: =IF(Worksheet!F89='Interstate Pay'!F13,L13,0) -> 0 | L13: 0 | M13: 0 | N13: 0
F14: Florida | G14: 800 | I14: =G21/G14 -> 0.95125 | J14: =IF(Worksheet!I86="F",Worksheet!J124,Worksheet!H124) -> 0 | K14: =IF(Worksheet!F89='Interstate Pay'!F14,L14,0) -> 0 | L14: 0 | M14: 0 | N14: 0
F15: Georgia | G15: 854 | I15: =G21/G15 -> 0.8911007026 | J15: =IF(Worksheet!I86="F",Worksheet!J124,Worksheet!H124) -> 0 | K15: =IF(Worksheet!F89='Interstate Pay'!F15,L15,0) -> 0 | L15: 0 | M15: 0 | N15: 0
F16: Hawaii | G16: 827 | I16: =G21/G16 -> 0.9201934704 | J16: =IF(Worksheet!I86="F",Worksheet!J124,Worksheet!H124) -> 0 | K16: =IF(Worksheet!F89='Interstate Pay'!F16,L16,0) -> 0 | L16: 0 | M16: 0 | N16: 0
F17: Idaho | G17: 687 | I17: =G21/G17 -> 1.107714702 | J17: =IF(Worksheet!I86="F",Worksheet!J124,Worksheet!H124) -> 0 | K17: =IF(Worksheet!F89='Interstate Pay'!F17,L17,0) -> 0 | L17: 0 | M17: 0 | N17: 0
F18: Illinois | G18: 945 | I18: =G21/G18 -> 0.8052910053 | J18: =IF(Worksheet!I86="F",Worksheet!J124,Worksheet!H124) -> 0 | K18: =IF(Worksheet!F89='Interstate Pay'!F18,L18,0) -> 0 | L18: 0 | M18: 0 | N18: 0
F19: Indiana | G19: 772 | I19: =G21/G19 -> 0.9857512953 | J19: =IF(Worksheet!I86="F",Worksheet!J124,Worksheet!H124) -> 0 | K19: =IF(Worksheet!F89='Interstate Pay'!F19,L19,0) -> 0 | L19: 0 | M19: 0 | N19: 0
F20: Iowa | G20: 756 | I20: =G21/G20 -> 1.006613757 | J20: =IF(Worksheet!I86="F",Worksheet!J124,Worksheet!H124) -> 0 | K20: =IF(Worksheet!F89='Interstate Pay'!F20,L20,0) -> 0 | L20: 0 | M20: 0 | N20: 0
F21: Kansas | G21: 761 | I21: =G21/G21 -> 1 | J21: =IF(Worksheet!I86="F",Worksheet!J124,Worksheet!H124) -> 0 | K21: =IF(Worksheet!F89='Interstate Pay'!F21,L21,0) -> 0 | L21: 0 | M21: 0 | N21: 0
F22: Kentucky | G22: 751 | I22: =G21/G22 -> 1.013315579 | J22: =IF(Worksheet!I86="F",Worksheet!J124,Worksheet!H124) -> 0 | K22: =IF(Worksheet!F89='Interstate Pay'!F22,L22,0) -> 0 | L22: 0 | M22: 0 | N22: 0
F23: Louisiana | G23: 805 | I23: =G21/G23 -> 0.9453416149 | J23: =IF(Worksheet!I86="F",Worksheet!J124,Worksheet!H124) -> 0 | K23: =IF(Worksheet!F89='Interstate Pay'!F23,L23,0) -> 0 | L23: 0 | M23: 0 | N23: 0
F24: Maine | G24: 722 | I24: =G21/G24 -> 1.05401662 | J24: =IF(Worksheet!I86="F",Worksheet!J124,Worksheet!H124) -> 0 | K24: =IF(Worksheet!F89='Interstate Pay'!F24,L24,0) -> 0 | L24: 0 | M24: 0 | N24: 0
F25: Maryland | G25: 1007 | I25: =G21/G25 -> 0.7557100298 | J25: =IF(Worksheet!I86="F",Worksheet!J124,Worksheet!H124) -> 0 | K25: =IF(Worksheet!F89='Interstate Pay'!F25,L25,0) -> 0 | L25: 0 | M25: 0 | N25: 0
F26: Massachusetts | G26: 1102 | I26: =G21/G26 -> 0.6905626134 | J26: =IF(Worksheet!I86="F",Worksheet!J124,Worksheet!H124) -> 0 | K26: =IF(Worksheet!F89='Interstate Pay'!F26,L26,0) -> 0 | L26: 0 | M26: 0 | N26: 0
F27: Michigan | G27: 862 | I27: =G21/G27 -> 0.8828306265 | J27: =IF(Worksheet!I86="F",Worksheet!J124,Worksheet!H124) -> 0 | K27: =IF(Worksheet!F89='Interstate Pay'!F27,L27,0) -> 0 | L27: 0 | M27: 0 | N27: 0
F28: Minnesota | G28: 915 | I28: =G21/G28 -> 0.8316939891 | J28: =IF(Worksheet!I86="F",Worksheet!J124,Worksheet!H124) -> 0 | K28: =IF(Worksheet!F89='Interstate Pay'!F28,L28,0) -> 0 | L28: 0 | M28: 0 | N28: 0
F29: Mississippi | G29: 672 | I29: =G21/G29 -> 1.132440476 | J29: =IF(Worksheet!I86="F",Worksheet!J124,Worksheet!H124) -> 0 | K29: =IF(Worksheet!F89='Interstate Pay'!F29,L29,0) -> 0 | L29: 0 | M29: 0 | N29: 0
F30: Missouri | G30: 793 | I30: =G21/G30 -> 0.9596469105 | J30: =IF(Worksheet!I86="F",Worksheet!J124,Worksheet!H124) -> 0 | K30: =IF(Worksheet!F89='Interstate Pay'!F30,L30,0) -> 0 | L30: 0 | M30: 0 | N30: 0
F31: Montana | G31: 689 | I31: =G21/G31 -> 1.104499274 | J31: =IF(Worksheet!I86="F",Worksheet!J124,Worksheet!H124) -> 0 | K31: =IF(Worksheet!F89='Interstate Pay'!F31,L31,0) -> 0 | L31: 0 | M31: 0 | N31: 0
F32: Nebraska | G32: 742 | I32: =G21/G32 -> 1.025606469 | J32: =IF(Worksheet!I86="F",Worksheet!J124,Worksheet!H124) -> 0 | K32: =IF(Worksheet!F89='Interstate Pay'!F32,L32,0) -> 0 | L32: 0 | M32: 0 | N32: 0
F33: Nevada | G33: 820 | I33: =G21/G33 -> 0.9280487805 | J33: =IF(Worksheet!I86="F",Worksheet!J124,Worksheet!H124) -> 0 | K33: =IF(Worksheet!F89='Interstate Pay'!F33,L33,0) -> 0 | L33: 0 | M33: 0 | N33: 0
F34: New Hampshire | G34: 874 | I34: =G21/G34 -> 0.8707093822 | J34: =IF(Worksheet!I86="F",Worksheet!J124,Worksheet!H124) -> 0 | K34: =IF(Worksheet!F89='Interstate Pay'!F34,L34,0) -> 0 | L34: 0 | M34: 0 | N34: 0
F35: New Jersey | G35: 1053 | I35: =G21/G35 -> 0.722697056 | J35: =IF(Worksheet!I86="F",Worksheet!J124,Worksheet!H124) -> 0 | K35: =IF(Worksheet!F89='Interstate Pay'!F35,L35,0) -> 0 | L35: 0 | M35: 0 | N35: 0
F36: New Mexico | G36: 761 | I36: =G21/G36 -> 1 | J36: =IF(Worksheet!I86="F",Worksheet!J124,Worksheet!H124) -> 0 | K36: =IF(Worksheet!F89='Interstate Pay'!F36,L36,0) -> 0 | L36: 0 | M36: 0 | N36: 0
F37: New York | G37: 1088 | I37: =G21/G37 -> 0.6994485294 | J37: =IF(Worksheet!I86="F",Worksheet!J124,Worksheet!H124) -> 0 | K37: =IF(Worksheet!F89='Interstate Pay'!F37,L37,0) -> 0 | L37: 0 | M37: 0 | N37: 0
F38: North Carolina | G38: 806 | I38: =G21/G38 -> 0.9441687345 | J38: =IF(Worksheet!I86="F",Worksheet!J124,Worksheet!H124) -> 0 | K38: =IF(Worksheet!F89='Interstate Pay'!F38,L38,0) -> 0 | L38: =I38*J39 -> 0 | M38: =J39-L38 -> 0 | N38: 0
F39: North Dakota | G39: 872 | I39: =G21/G39 -> 0.872706422 | J39: =IF(Worksheet!I86="F",Worksheet!J124,Worksheet!H124) -> 0 | K39: =IF(Worksheet!F89='Interstate Pay'!F39,L39,0) -> 0 | L39: 0 | M39: 0 | N39: 0
F40: Ohio | G40: 828 | I40: =G21/G40 -> 0.9190821256 | J40: =IF(Worksheet!I86="F",Worksheet!J124,Worksheet!H124) -> 0 | K40: =IF(Worksheet!F89='Interstate Pay'!F40,L40,0) -> 0 | L40: 0 | M40: 0 | N40: 0
F41: Oklahoma | G41: 779 | I41: =G21/G41 -> 0.9768934531 | J41: =IF(Worksheet!I86="F",Worksheet!J124,Worksheet!H124) -> 0 | K41: =IF(Worksheet!F89='Interstate Pay'!F41,L41,0) -> 0 | L41: 0 | M41: 0 | N41: 0
F42: Oregon | G42: 834 | I42: =G21/G42 -> 0.912470024 | J42: =IF(Worksheet!I86="F",Worksheet!J124,Worksheet!H124) -> 0 | K42: =IF(Worksheet!F89='Interstate Pay'!F42,L42,0) -> 0 | L42: 0 | M42: 0 | N42: 0
F43: Pennsylvania | G43: 899 | I43: =G21/G43 -> 0.8464961068 | J43: =IF(Worksheet!I86="F",Worksheet!J124,Worksheet!H124) -> 0 | K43: =IF(Worksheet!F89='Interstate Pay'!F43,L43,0) -> 0 | L43: 0 | M43: 0 | N43: 0
F44: Rhode Island | G44: 855 | I44: =G21/G44 -> 0.8900584795 | J44: =IF(Worksheet!I86="F",Worksheet!J124,Worksheet!H124) -> 0 | K44: =IF(Worksheet!F89='Interstate Pay'!F44,L44,0) -> 0 | L44: 0 | M44: 0 | N44: 0
F45: South Carolina | G45: 738 | I45: =G21/G45 -> 1.031165312 | J45: =IF(Worksheet!I86="F",Worksheet!J124,Worksheet!H124) -> 0 | K45: =IF(Worksheet!F89='Interstate Pay'!F45,L45,0) -> 0 | L45: 0 | M45: 0 | N45: 0
F46: South Dakota | G46: 683 | I46: =G21/G46 -> 1.11420205 | J46: =IF(Worksheet!I86="F",Worksheet!J124,Worksheet!H124) -> 0 | K46: =IF(Worksheet!F89='Interstate Pay'!F46,L46,0) -> 0 | L46: 0 | M46: 0 | N46: 0
F47: Tennessee | G47: 814 | I47: =G21/G47 -> 0.9348894349 | J47: =IF(Worksheet!I86="F",Worksheet!J124,Worksheet!H124) -> 0 | K47: =IF(Worksheet!F89='Interstate Pay'!F47,L47,0) -> 0 | L47: 0 | M47: 0 | N47: 0
F48: Texas | G48: 930 | I48: =G21/G48 -> 0.8182795699 | J48: =IF(Worksheet!I86="F",Worksheet!J124,Worksheet!H124) -> 0 | K48: =IF(Worksheet!F89='Interstate Pay'!F48,L48,0) -> 0 | L48: 0 | M48: 0 | N48: 0
F49: Utah | G49: 766 | I49: =G21/G49 -> 0.9934725849 | J49: =IF(Worksheet!I86="F",Worksheet!J124,Worksheet!H124) -> 0 | K49: =IF(Worksheet!F89='Interstate Pay'!F49,L49,0) -> 0 | L49: 0 | M49: 0 | N49: 0
F50: Vermont | G50: 763 | I50: =G21/G50 -> 0.997378768 | J50: =IF(Worksheet!I86="F",Worksheet!J124,Worksheet!H124) -> 0 | K50: =IF(Worksheet!F89='Interstate Pay'!F50,L50,0) -> 0 | L50: 0 | M50: 0 | N50: 0
F51: Virginia | G51: 960 | I51: =G21/G51 -> 0.7927083333 | J51: =IF(Worksheet!I86="F",Worksheet!J124,Worksheet!H124) -> 0 | K51: =IF(Worksheet!F89='Interstate Pay'!F51,L51,0) -> 0 | L51: 0 | M51: 0 | N51: 0
F52: Washington | G52: 1024 | I52: =G21/G52 -> 0.7431640625 | J52: =IF(Worksheet!I86="F",Worksheet!J124,Worksheet!H124) -> 0 | K52: =IF(Worksheet!F89='Interstate Pay'!F52,L52,0) -> 0 | L52: 0 | M52: 0 | N52: 0
F53: West Virginia | G53: 724 | I53: =G21/G53 -> 1.051104972 | J53: =IF(Worksheet!I86="F",Worksheet!J124,Worksheet!H124) -> 0 | K53: =IF(Worksheet!F89='Interstate Pay'!F53,L53,0) -> 0 | L53: 0 | M53: 0 | N53: 0
F54: Wisconsin | G54: 770 | I54: =G21/G54 -> 0.9883116883 | J54: =IF(Worksheet!I86="F",Worksheet!J124,Worksheet!H124) -> 0 | K54: =IF(Worksheet!F89='Interstate Pay'!F54,L54,0) -> 0 | L54: 0 | M54: 0 | N54: 0
F55: Wyoming | G55: 828 | I55: =G21/G55 -> 0.9190821256 | J55: =IF(Worksheet!I86="F",Worksheet!J124,Worksheet!H124) -> 0 | K55: =IF(Worksheet!F89='Interstate Pay'!F55,L55,0) -> 0 | L55: 0 | M55: 0 | N55: 0
K56: =SUM(K5:K55) -> 0 | N56: =-J55+K56 -> 0

Sheet Extended (hidden)
C2: 1 | D2: 2 | E2: 3 | F2: 4 | G2: 5 | H2: 6
B3: Income | C3: =Worksheet!L141 -> 0 | D3: =C3 -> 0 | E3: =C3 -> 0 | F3: =C3 -> 0 | G3: =C3 -> 0 | H3: =C3 -> 0
B4: Power | C4: =POWER(C3,0.689838232) -> 0 | D4: =POWER(C3,0.689838232) -> 0 | E4: =POWER(C3,0.689838232) -> 0 | F4: =POWER(C3,0.689838232) -> 0 | G4: =POWER(C3,0.689838232) -> 0 | H4: =POWER(C3,0.689838232) -> 0
B5: Multiplier | C5: 2.795182393 | D5: 2.049742412 | E5: 1.822812799 | F5: 1.561964695 | G5: 1.391460152 | H5: 1.265842221
B6: Product | C6: =C4*C5 -> 0 | D6: =D4*D5 -> 0 | E6: 0 | F6: 0 | G6: 0 | H6: 0
B7: 12-18 | C7: =C6 -> 0 | D7: =D6 -> 0 | E7: 0 | F7: 0 | G7: 0 | H7: 0
C8: 0.92 | D8: 0.92 | E8: 0.92 | F8: 0.92 | G8: 0.92 | H8: 0.92
B9: 6-11 | C9: =C7*C8 -> 0 | D9: =D7*D8 -> 0 | E9: 0 | F9: 0 | G9: 0 | H9: 0
C10: 0.8 | D10: 0.8 | E10: 0.8 | F10: 0.8 | G10: 0.8 | H10: 0.8
B11: 0-5 | C11: =C7*C10 -> 0 | D11: =D7*D10 -> 0 | E11: 0 | F11: 0 | G11: 0 | H11: 0
B15: Income | C15: =IF(Schedules!AE6>15500,Schedules!AE6,0) -> 0 | D15: =IF(Schedules!AE6>15500,Schedules!AE6,0) -> 0 | E15: =IF(Schedules!AE6>15500,Schedules!AE6,0) -> 0 | F15: =IF(Schedules!AE6>15500,Schedules!AE6,0) -> 0 | G15: =IF(Schedules!AE6>15500,Schedules!AE6,0) -> 0 | H15: =IF(Schedules!AE6>15500,Schedules!AE6,0) -> 0
B16: # of Children | C16: =Schedules!AJ15 -> 1
B17: Age of Children
B18: 0-5.5 | C18: ='Age of Children'!G9 -> 0 | D18: =C18 -> 0 | E18: =C18 -> 0 | F18: =C18 -> 0 | G18: =C18 -> 0 | H18: =C18 -> 0
B19: 5.5-11.5 | C19: ='Age of Children'!H9 -> 0 | D19: =C19 -> 0 | E19: =C19 -> 0 | F19: =C19 -> 0 | G19: =C19 -> 0 | H19: =C19 -> 0
B20: 11.5-18 | C20: ='Age of Children'!I9 -> 1 | D20: =C20 -> 1 | E20: =C20 -> 1 | F20: =C20 -> 1 | G20: =C20 -> 1 | H20: =C20 -> 1
B25: 0-5 | C25: =IF(C16=1,C18*C11,0) -> 0 | D25: =IF(C16=2,D18*D11,0) -> 0 | E25: =IF(C16=3,E18*E11,0) -> 0 | F25: =IF(C16=4,F18*F11,0) -> 0 | G25: =IF(C16=5,G18*G11,0) -> 0 | H25: =IF(C16=6,H18*H11,0) -> 0 | I25: =SUM(C25:H25) -> 0
B26: 6-11 | C26: =IF(C16=1,C19*C9,0) -> 0 | D26: =IF(C16=2,D19*D9,0) -> 0 | E26: =IF(C16=3,E19*E9,0) -> 0 | F26: =IF(C16=4,F19*F9,0) -> 0 | G26: =IF(C16=5,G19*G9,0) -> 0 | H26: =IF(C16=6,H19*H9,0) -> 0 | I26: =SUM(C26:H26) -> 0
B27: 12-18 | C27: =IF(C16=1,C20*C7,0) -> 0 | D27: =IF(C16=2,D20*D7,0) -> 0 | E27: =IF(C16=3,E20*E7,0) -> 0 | F27: =IF(C16=4,F20*F7,0) -> 0 | G27: =IF(C16=5,G20*G7,0) -> 0 | H27: =IF(C16=6,H20*H7,0) -> 0 | I27: =SUM(C27:H27) -> 0

Sheet EPT Draft (hidden)
F2: Equal Parenting Time Worksheet
D4: Step 1 | E4: 1 | F4: Higher Amount from Line F.3 | K4: =IF(Worksheet!H198>Worksheet!J198,Worksheet!H198,Worksheet!J198) -> 
E5: 2 | F5: Lower Amount from Line F.3 | K5: =IF(Worksheet!J198<Worksheet!H198,Worksheet!J198,Worksheet!H198) -> 
E6: 3 | F6: Subtract 2 from 1 | K6: =K4-K5 -> 
E7: 4 | F7: Line 3 x .5 | K7: =K6*0.5 -> 
D8: Step 2 | E8: 5 | F8: Enter the total Line D.1 | K8: =Worksheet!L141 -> 0 | N8: =Worksheet!L141 -> 0
E9: 6 | F9: Enter the total Line D.3 | K9: =Worksheet!L156 -> 
E10: 7 | F10: If written agreement provide clothing (Y or N) | K10: =Worksheet!I90 -> Y
E11: 8 | F11: If no written agreement:
F12: 4690 | K12: =IF(K8<=F12,0.13,0) -> 0.13 | N12: =IF(K8<=F12,0.13,0) -> 0.13
F13: 8125 | K13: =IF(K8>F12,K8<F13,)*0.15 -> 0
F14: 8126 | K14: =IF(K8>=F14,0.18,0) -> 0
E15: 9 | F15: Sum Unwritten | K15: =SUM(K12:K14) -> 0.13
E16: 10 | F16: If no written agreement Multiplier | K16: =IF(K10="N",K15,0) -> 0
E17: 11 | F17: If written agreement
F18: 4690 | K18: =IF(K8<=F12,0.11,0) -> 0.11
F19: 8125 | K19: =IF(K8>F12,K8<F13,)*0.13 -> 0
F20: 8126 | K20: =IF(K8>=F14,0.16,0) -> 0
E21: 12 | F21: Sum Written | K21: =SUM(K18:K20) -> 0.11
E22: 13 | F22: If written agreement | K22: =IF(K10="Y",K21,0) -> 0.11
E23: 14 | F23: Sum unwritten and written | K23: =K16+K22 -> 0.11 | P23: Father | Q23: Mother
E24: 15 | F24: Multiplier | K24: =K23*K9 ->  | M24: =K22+K16*K9 ->  | P24: =IF(N29=1,K31,0) ->  | Q24: =IF(N28=1,K31,0) -> 0 | R24: =SUM(P24:Q24) -> 
D25: Step 3 | E25: 16 | F25: If parent designated to pay all of the direct | P25: =IF(N30=2,K32,0) -> 0 | Q25: =IF(N31=2,K32,0) ->  | R25: =SUM(P25:Q25) -> 
F26: expenses is: | P26: =SUM(P24:P25) ->  | Q26: =SUM(Q24:Q25) -> 
F27: the lower adjusted subtotal from Line F.3
F28: Mother | H28: Father | N28: =IF(K30="F",F29>=H29)*1 -> 0
F29: =Worksheet!H198 ->  | H29: =Worksheet!J198 ->  | N29: =IF(K30="M",F29<=H29)*1 -> 
F30: Designated to Pay (M or F) | K30: =Worksheet!F92 -> M | N30: =IF(K30="F",F29<=H29)*2 -> 0
E31: 17 | F31: Add Line 4 and 10 | K31: =IF(N32>0,N33,0) ->  | N31: =IF(K30="M",F29>=H29)*2 ->  | O31: =K9+K24 -> 
E32: 18 | F32: Subtract Line 4 and 10 | K32: =IF(N32>0,N34,0) ->  | N32: =SUM(N28:N31) -> 
N33: =K24+K7 -> 
N34: =K7-K24 -> 

Sheet Sheet11 (hidden)
E2: Custodial Parent | I2: Noncustodial Parent
E3: Filing Status | I3: Filing Status
E4: Federal Tax Rate | I4: Federal Tax Rate
E5: State Tax Rate | I5: State Tax Rate
E6: % of Income | I6: % of Income
E7: Adjusted Gross | I7: Adjusted Gross
D13: Head of Household
D14: 2013
C16: Federal | F16: 2013
C17: Standard Deduction | F17: 8950
C18: Normal Exemption | F18: 3900
C19: Available Exemption | F19: 3900
C20: Parent's Exemption | F20: 1
C21: Exemption Value | F21: 3900
C22: Deduction's Total | F22: =F17+F18 -> 12850
C23: FEDERAL ADJ. GROSS | F23: =H15-F22 -> -12850
C25: State
C26: Standard Ded. | F26: 9000
C27: Normal Exemption | F27: 2250
C28: # of Claims | F28: 2
C29: (parent plus one)
C30: Exemption Value | F30: =F28*F27 -> 4500
C31: Ded. Total | F31: =F30+F26 -> 13500
C32: KANSAS ADJUST GROSS | F32: =H15-F31 -> -13500
D35: Head of Household Exemption
D36: 2013
C37: Federal
C38: Single | E38: 6100
C39: Head of Household | E39: 8950
C40: Benefit | E40: =E39-E38 -> 2850
C42: Kansas Increase
C43: Single | E43: 3000
C44: Head of Household | E44: 9000
C45: Benefit | E45: =E44-E43 -> 6000
C47: KS Exempt. | E47: 2250
C49: Head of Household Benefit
C50: Kansas
C51: Value of Extra Exemption | F51: =E47 -> 2250
C52: Cust Parent's Marginal Tax Rate | F52: =I53 -> 0
C53: Annual Tax Savings | F53: =F51*F52 -> 0
C54: Monthly Tax Savings | F54: =F53/12 -> 0
C55: % Income Noncustodial | F55: =Worksheet!H151 -> 0
C56: Noncustodial's Share | F56: =F55*F54/100 -> 0
C59: Standard Deduction Benefit
C60: Federal | F60: =E40 -> 2850
C61: Cust Parent's Marginal Tax Rate | F61: =IF(Worksheet!D38="Y",I67,N67) -> 0
C62: Value Tax Savings | F62: =F61*F60/100 -> 0
C64: Kansas | F64: =E45 -> 6000
C65: Cust Parent's Marginal Tax Rate | F65: =F52 -> 0
C66: Value of Tax Savings | F66: =F64*F65 -> 0
C67: Total Tax Savings | F67: =F62+F66 -> 0
C68: Mother's Monthly Tax Savings | F68: =F67/12 -> 0
C69: Noncust Parent's % of Income | F69: =F55 -> 0
C70: Noncust Parent's Share | F70: =F69*F68/100 -> 0
C71: Adjustment | F71: =F56+F70 -> 0
C72: Remove HOH | G72: Assumes HOH so Subtract if not
C73: TOTAL ADJUSTMENT | F73: =F71+F72 -> 0

Sheet Tax Rates (hidden)
L1: =M1*12 -> 0 | M1: =IF(Worksheet!F45="M",Worksheet!J141,Worksheet!H141) -> 0 | P1: =Q1*12 -> 0 | Q1: =IF(Worksheet!F45="M",Worksheet!H141,Worksheet!J141) -> 0
G2: =IF(Worksheet!F33="Head of Household",-D38,0) -> 0 | H2: =IF(Worksheet!F33="Single",-D37,0) -> 0 | I2: =IF(Worksheet!F33="Married-Joint",-G37,0) -> 0 | J2: =IF(Worksheet!F33="Married-Sep.",-G37,0) -> 0 | L2: =G2+H2+I2+J2 -> 0 | P2: =T2+S2+R2+Q2 -> 0 | Q2: =IF(Worksheet!F40="Married-Sep.",-G37,0) -> 0 | R2: =IF(Worksheet!F40="Married-Joint",-G37,0) -> 0 | S2: =IF(Worksheet!F40="Single",-D37,0) -> 0 | T2: =IF(Worksheet!F40="Head of Household",-D38,0) -> 0
B4: Custodial Parent | F4: Noncustodial Parent | K4: Custodial | L4: =L1+L2 -> 0 | N4: Noncustodial | P4: =P1+P2 -> 0
B5: Filing Status | F5: Filing Status | G5: =IF(Worksheet!F33="Head of Household",-D43,0) -> 0 | H5: =IF(Worksheet!F33="Single",-D42,0) -> 0 | I5: =IF(Worksheet!F33="Married-Joint",-D43,0) -> 0 | J5: =IF(Worksheet!F33="Married-Sep.",-D43,0) -> 0 | L5: =G5+H5+I5+J5 -> 0 | P5: =T5+S5+R5+Q5 -> 0 | Q5: =IF(Worksheet!F40="Married-Sep.",-D43,0) -> 0 | R5: =IF(Worksheet!F40="Married-Joint",-D43,0) -> 0 | S5: =IF(Worksheet!F40="Single",-D42,0) -> 0 | T5: =IF(Worksheet!F40="Head of Household",-D43,0) -> 0
B6: Federal Tax Rate | F6: Federal Tax Rate | I6: Federal Tax Rate | L6: Federal Married filing Jointly | P6: Federal Head of Household | T6: Federal Married filing Separately
B7: State Tax Rate | F7: State Tax Rate | I7: Single
B8: % of Income | F8: % of Income | I8: 0 | L8: 0 | P8: 0 | T8: 0
B9: Adjusted Gross | F9: Adjusted Gross | I9: 8925 | J9: 0.1 | L9: 17850 | M9: 0.1 | P9: 12750 | Q9: 0.1 | T9: 8925 | U9: 0.1
I10: 36250 | J10: 15 | L10: 72500 | M10: 15 | N10: 1740 | P10: 48600 | Q10: 15 | R10: 1240 | T10: 36250 | U10: 15 | V10: 892.5
B11: =Worksheet!D162 -> Case No. | C11: =Worksheet!E162 -> 0 | I11: 87850 | J11: 25 | L11: 146400 | M11: 25 | N11: 9735 | P11: 125450 | Q11: 25 | R11: 68483 | T11: 73200 | U11: 25 | V11: 4991.25
C12: Head of Household | I12: 183250 | J12: 28 | L12: 223050 | M12: 28 | N12: 27735 | P12: 203150 | Q12: 28 | R12: 25220 | T12: 111525 | U12: 28 | V12: 14228.75
C13: 2013 | I13: 398350 | J13: 33 | L13: 398350 | M13: 33 | N13: 48665 | P13: 398350 | Q13: 33 | R13: 46430 | T13: 199175 | U13: 33 | V13: 24959.25
I14: 400000 | J14: 35 | L14: 450000 | M14: 35 | N14: 105062 | P14: 425000 | Q14: 35 | R14: 109229 | T14: 22500 | U14: 35 | V14: 62923
B15: Federal | E15: 2013 | I15: 400001 | J15: 39.6 | L15: 450001 | M15: 39.6 | P15: 425001 | Q15: 39.6 | T15: 225001 | U15: 39.6
B16: Standard Deduction | E16: 8950
B17: Normal Exemption | E17: 3900
B18: Available Exemption | E18: 3900
B19: Parent's Exemption | E19: 1 | I19: Custodial | J19: Noncust | L19: Cust | M19: Noncust | P19: Cust | Q19: Noncust | T19: Cust | U19: Noncust
B20: Exemption Value | E20: 3900 | I20: =IF(L4<=I9,J9,0) -> 0.1 | J20: =IF(P4<=I9,J9,0) -> 0.1 | L20: =IF(L4<L9,M9,0) -> 0.1 | M20: =IF(P4<=L9,M9,0) -> 0.1 | P20: =IF(L4<P9,Q10,0) -> 15 | Q20: =IF(T4<=P9,Q9,0) -> 0.1 | T20: =IF(L4<T9,U10,0) -> 15 | U20: =IF(P4<=T9,U9,0) -> 0.1
B21: Deduction's Total | E21: =E16+E17 -> 12850 | I21: =IF(L4>I9,L4<=I10)*0.15 -> 0 | J21: =IF(P4>I9,P4<=I10)*0.15 -> 0 | L21: =IF(L4>L9,L4<=L10)*0.15 -> 0 | M21: =IF(P4>L9,P4<=L10)*0.15 -> 0 | P21: =IF(L4>P9,L4<=P10)*0.15 -> 0 | Q21: =IF(P4>P9,P4<=P10)*0.15 -> 0 | T21: =IF(L4>T9,L4<=T10)*0.15 -> 0 | U21: =IF(P4>T9,P4<=T10)*0.15 -> 0
B22: FEDERAL ADJ. GROSS | E22: =G14-E21 -> -12850 | I22: =IF(L4>I10,L4<=I11)*0.25 -> 0 | J22: =IF(P4>I10,P4<=I11)*0.25 -> 0 | L22: =IF(L4>L10,L4<=L11)*0.25 -> 0 | M22: =IF(P4>L10,P4<=L11)*0.25 -> 0 | P22: =IF(L4>P10,L4<=P11)*0.25 -> 0 | Q22: =IF(P4>P10,P4<=P11)*0.25 -> 0 | T22: =IF(L4>T10,L4<=T11)*0.25 -> 0 | U22: =IF(P4>T10,P4<=T11)*0.25 -> 0
I23: =IF(L4>I11,L4<=I12)*0.28 -> 0 | J23: =IF(P4>I11,P4<=I12)*0.28 -> 0 | L23: =IF(L4>L11,L4<=L12)*0.28 -> 0 | M23: =IF(P4>L11,P4<=L12)*0.28 -> 0 | P23: =IF(L4>P11,L4<=P12)*0.28 -> 0 | Q23: =IF(P4>P11,P4<=P12)*0.28 -> 0 | T23: =IF(L4>T11,L4<=T12)*0.28 -> 0 | U23: =IF(P4>T11,P4<=T12)*0.28 -> 0
B24: State | I24: =IF(L4>I12,L4<=I13)*0.33 -> 0 | J24: =IF(P4>I12,P4<=I13)*0.33 -> 0 | L24: =IF(L4>L12,L4<=L13)*0.33 -> 0 | M24: =IF(P4>L12,P4<=L13)*0.33 -> 0 | P24: =IF(L4>P12,L4<=P13)*0.33 -> 0 | Q24: =IF(P4>P12,P4<=P13)*0.33 -> 0 | T24: =IF(L4>T12,L4<=T13)*0.33 -> 0 | U24: =IF(P4>T12,P4<=T13)*0.33 -> 0
B25: Standard Ded. | E25: 9000 | I25: =IF(L4>I13,L4<=I14)*0.35 -> 0 | J25: =IF(P4>I13,P4<=I14)*0.35 -> 0 | L25: =IF(L4>L13,L4<=L14)*0.35 -> 0 | M25: =IF(P4>L13,P4<=L14)*0.35 -> 0 | P25: =IF(L4>P13,L4<=P14)*0.35 -> 0 | Q25: =IF(P4>P13,P4<=P14)*0.35 -> 0 | T25: =IF(L4>T13,L4<=T14)*0.35 -> 0 | U25: =IF(P4>T13,P4<=T14)*0.35 -> 0
B26: Normal Exemption | E26: 2250 | I26: =IF(L4>=I15,J15,0) -> 0 | J26: =IF(P4>=I15,J15,0) -> 0 | L26: =IF(L4>=L15,M15,0) -> 0 | M26: =IF(P4>=L15,M15,0) -> 0 | P26: =IF(L4>=L15,Q15,0) -> 0 | Q26: =IF(P4>=P15,Q15,0) -> 0 | T26: =IF(P4>=P15,U15,0) -> 0 | U26: =IF(P4>=T15,U15,0) -> 0
B27: # of Claims | E27: 2 | I27: =SUM(I20:I26) -> 0.1 | J27: =SUM(J20:J26) -> 0.1 | L27: =SUM(L20:L26) -> 0.1 | M27: =SUM(M20:M26) -> 0.1 | P27: =SUM(P20:P26) -> 15 | Q27: =SUM(Q20:Q26) -> 0.1 | T27: =SUM(T20:T26) -> 15 | U27: =SUM(U20:U26) -> 0.1
B28: (parent plus one) | I28: State Tax Rate | L28: State Married filing Jointly | P28: State Head of Household | T28: State Married filing Separately
B29: Exemption Value | E29: =E27*E26 -> 4500 | I29: Single
B30: Ded. Total | E30: =E29+E25 -> 13500
B31: KANSAS ADJUST GROSS | E31: =G14-E30 -> -13500 | I31: 0 | L31: 0 | P31: 0 | T31: 0
I32: 15000 | J32: 0.03 | L32: 30000 | M32: 0.03 | P32: 15000 | Q32: 0.03 | T32: 30000 | U32: 0.03
I33: 15001 | J33: 0.049 | L33: 30001 | M33: 0.049 | P33: 15001 | Q33: 0.049 | T33: 30001 | U33: 0.049
C34: Head of Household Exemption
C35: 2013
B36: Federal
B37: Single | D37: 6100 | F37: Married-Joint | G37: 12200
B38: Head of Household | D38: 8950 | I38: Custodial | J38: Noncust | L38: Cust | M38: Noncust | P38: Cust | Q38: Noncust | T38: Cust | U38: Noncust
B39: Benefit | D39: =D38-D37 -> 2850 | I39: =IF(P47<=I32,J32,0) -> 0.03 | J39: =IF(Q47<=I32,J32,0) -> 0.03 | L39: =IF(P47<=L32,M32,0) -> 0.03 | M39: =IF(Q47<=L32,M32,0) -> 0.03 | P39: =IF(P47<=P32,Q32,0) -> 0.03 | Q39: =IF(Q47<=P32,Q32,0) -> 0.03 | T39: =IF(P47<=T32,U32,0) -> 0.03 | U39: =IF(Q47<=T32,U32,0) -> 0.03
B41: Kansas Increase | I41: =IF(P47>I32,J33,0) -> 0 | J41: =IF(Q47>I32,J33,0) -> 0 | L41: =IF(P47>L32,M33,0) -> 0 | M41: =IF(Q47>L32,M33,0) -> 0 | P41: =IF(P47>P32, Q33,0) -> 0 | Q41: =IF(Q47>P32, Q33,0) -> 0 | T41: =IF(P47>T32,U33,0) -> 0 | U41: =IF(Q47>T32,U33,0) -> 0
B42: Single | D42: 3000 | I42: =SUM(I39:I41) -> 0.03 | J42: =SUM(J39:J41) -> 0.03 | L42: =SUM(L39:L41) -> 0.03 | M42: =SUM(M39:M41) -> 0.03 | P42: =SUM(P39:P41) -> 0.03 | Q42: =SUM(Q39:Q41) -> 0.03 | T42: =SUM(T39:T41) -> 0.03 | U42: =SUM(U39:U41) -> 0.03
B43: Head of Household | D43: 9000
B44: Benefit | D44: =D43-D42 -> 6000
I45: Cust | K45: Federal | M45: State | P45: State
B46: KS Exempt. | D46: 2250 | I46: Head of Household | K46: =IF(Worksheet!F33="Head of Household",P27,0) -> 0 | M46: =IF(Worksheet!F33="Head of Household",P42,0) -> 0 | P46: Cust | Q46: Noncust
I47: Single | K47: =IF(Worksheet!F33="Single",I27,0) -> 0 | M47: =IF(Worksheet!F33="Single",I42,0) -> 0 | P47: =L1+L5 -> 0 | Q47: =P1+P5 -> 0 | T47: Head of Household
B48: Head of Household Benefit | I48: Married-Joint | K48: =IF(Worksheet!F33="Married-Joint",L27,0) -> 0 | M48: =IF(Worksheet!F33="Married-Joint",L42,0) -> 0 | T48: Single
B49: Kansas | I49: Married-Sep | K49: =IF(Worksheet!F33="Married-Sep.",T27,0) -> 0 | M49: =IF(Worksheet!F33="Married-Sep.",T42,0) -> 0 | T49: Married-Joint
B50: Value of Extra Exemption | E50: =D46 -> 2250 | I50: Total | K50: =SUM(K46:K49) -> 0 | M50: =SUM(M46:M49) -> 0 | T50: Married-Sep.
B51: Cust Parent's Marginal Tax Rate | E51: =M50 -> 0
B52: Annual Tax Savings | E52: =E50*E51 -> 0 | I52: Noncust
B53: Monthly Tax Savings | E53: =E52/12 -> 0 | I53: Head of Household | K53: =IF(Worksheet!F40="Head of Household",Q27,0) -> 0 | M53: =IF(Worksheet!F40="Head of Household",Q42,0) -> 0
B54: % Income Noncustodial | E54: =Worksheet!G147+IF(Worksheet!F45="Mother",Worksheet!J147,Worksheet!H147) ->  | I54: Single | K54: =IF(Worksheet!F40="Single",J27,0) -> 0 | M54: =IF(Worksheet!F40="Single",J42,0) -> 0
B55: Noncustodial's Share | E55: =E54*E53/100 ->  | I55: Married-Joint | K55: =IF(Worksheet!F40="Married-Joint",M27,0) -> 0 | M55: =IF(Worksheet!F40="Married-Joint",M42,0) -> 0
I56: Married-Sep | K56: =IF(Worksheet!F40="Married-Sep.",U27,0) -> 0 | M56: =IF(Worksheet!F40="Married-Sep.",U42,0) -> 0
I57: Total | K57: =SUM(K53:K56) -> 0 | M57: =SUM(M53:M56) -> 0
B58: Standard Deduction Benefit
B59: Federal | E59: =D39 -> 2850
B60: Cust Parent's Marginal Tax Rate | E60: =K50 -> 0
B61: Value Tax Savings | E61: =E60*E59 -> 0
B63: Kansas | E63: =D44 -> 6000
B64: Cust Parent's Marginal Tax Rate | E64: =M50 -> 0
B65: Value of Tax Savings | E65: =E63*E64 -> 0
B66: Total Tax Savings | E66: =E61+E65 -> 0
B67: Mother's Monthly Tax Savings | E67: =E66/12 -> 0
B68: Noncust Parent's % of Income | E68: =E54 -> 
B69: Noncust Parent's Share | E69: =E68*E67/100 -> 
B70: Adjustment | E70: =E55+E69 -> 
B71: Remove HOH | E71: =IF(K46=0,-E70,0) -> 
B72: TOTAL ADJUSTMENT | E72: =E70+E71 -> 
